Body Name,Body,Service Division Label,Service Division Code,Organisational Unit,Expenditure Category,Expenditure Code,CIPFA detailed expediture type,CIPFA detailed expediture code,Narrative,Date,Transaction number,Net Amount,Capital and Revenue,Supplier Name,Supplier ID
Chorley Borough Council,http://statistics.data.gov.uk/id/local-authority/30UE,Unapportionable Central OHeads,1009,Policy & Governance,Mayoral Hospitality,40123,Expenses,5030,Venue dressing for the Mayor`s Civic Dinner on 18th May 2018.,23/05/2018,129806,300.00,Revenue, S.J. Enterprises (Chorley) Limited,70096
Chorley Borough Council,http://statistics.data.gov.uk/id/local-authority/30UE,Unapportionable Central OHeads,1009,Policy & Governance,Mayoral Hospitality,40123,Expenses,5030,Venue dressing for the Mayor`s Civic Dinner on 18th May 2018.,23/05/2018,129808,777.75,Revenue, S.J. Enterprises (Chorley) Limited,70096
Chorley Borough Council,http://statistics.data.gov.uk/id/local-authority/30UE,Democratic Represent and  Mgnt,1007,Policy & Governance,Grants To Other Organisations,40127,Grants and Subscriptions,5031,GRANT,02/05/2018,129247,250.00,Revenue,NAME REDACTED,77338
Chorley Borough Council,http://statistics.data.gov.uk/id/local-authority/30UE,Democratic Represent and  Mgnt,1007,Policy & Governance,Exhibitions & Special Events,40158,Miscellaneous Expenses,5034,47th Regiment of Foot re-enactment weekend at Astley Hall.,16/05/2018,129628,400.00,Revenue,47th Regiment of Foot,76673
Chorley Borough Council,http://statistics.data.gov.uk/id/local-authority/30UE,Democratic Represent and  Mgnt,1007,Policy & Governance,Other Fees,40212,Miscellaneous Expenses,5034,Bar fees for May 2018,30/05/2018,129965,130.00,Revenue,Ace Bars Ltd,54338
Chorley Borough Council,http://statistics.data.gov.uk/id/local-authority/30UE,Unapportionable Central OHeads,1009,Policy & Governance,Mayoral Hospitality,40123,Expenses,5030,refreshments for Civic Dinner on 18-5-18 (21 bottles at 10),30/05/2018,129965,320.00,Revenue,Ace Bars Ltd,54338
Chorley Borough Council,http://statistics.data.gov.uk/id/local-authority/30UE,Unapportionable Central OHeads,1009,Customer & Digital,Consultants` Fees,40077,Services,5027,CTS scheme consultancy support for 2018 19,04/05/2018,129079,500.00,Revenue,ACS Ltd,56512
Chorley Borough Council,http://statistics.data.gov.uk/id/local-authority/30UE,Unapportionable Central OHeads,1009,Business Development & Growth,General Repairs - Reactive,20004,Repairs Maintenance & Alts,5005,Reactive Blanket order from August 2017,02/05/2018,128608,467.93,Revenue,ADT Fire & Security,16645
Chorley Borough Council,http://statistics.data.gov.uk/id/local-authority/30UE,Unapportionable Central OHeads,1009,Business Development & Growth,Fire Alarms,20072,Fixtures and Fittings,5010,Reactive call outs FIRE,23/05/2018,129569,271.00,Revenue,ADT Fire & Security,16645
Chorley Borough Council,http://statistics.data.gov.uk/id/local-authority/30UE,Unapportionable Central OHeads,1009,Business Development & Growth,Planned Maintenance,20006,Repairs Maintenance & Alts,5005,MATCH AGAINST CREDIT 37529893- 10,11/05/2018,129570,534.25,Revenue,ADT Fire & Security,16645
Chorley Borough Council,http://statistics.data.gov.uk/id/local-authority/30UE,Unapportionable Central OHeads,1009,Business Development & Growth,Fire Alarms,20072,Fixtures and Fittings,5010,Reactive call outs FIRE,30/05/2018,129902,856.00,Revenue,ADT Fire & Security,16645
Chorley Borough Council,http://statistics.data.gov.uk/id/local-authority/30UE,Unapportionable Central OHeads,1009,Business Development & Growth,Burglar Alarms & Security Systems,20075,Fixtures and Fittings,5010,reactive call outs INTRUDER and ACCESS,30/05/2018,129903,487.32,Revenue,ADT Fire & Security,16645
Chorley Borough Council,http://statistics.data.gov.uk/id/local-authority/30UE,Control Accounts,Control,Policy & Governance,Manual Control Account,1,Balance Sheet,Balance,,11/05/2018,CRREF71,"1,143.93",Revenue,ADT Fire & Security,16645
Chorley Borough Council,http://statistics.data.gov.uk/id/local-authority/30UE,Service Management & Support,1009,Customer & Digital,Vehicles and Plant Maintenance,30045,Direct Transport Costs,5016,Service Schmidt Swingo 200 AE14AXW sweepers as per your quotation 20154538/ 20.04.2018,11/05/2018,129362,391.07,Revenue,Aebi Schmidt UK Ltd,17287
Chorley Borough Council,http://statistics.data.gov.uk/id/local-authority/30UE,Capital,Capital,Business Development & Growth,Architects Fees,3022,Capital Expenditure,Capital,Arley St CP Additional fee for architectural services in connection with Arley St car park amendments to suit Highways Officers,02/05/2018,129352,280.00,Capital,AEW Architects & Designers Ltd,66520
Chorley Borough Council,http://statistics.data.gov.uk/id/local-authority/30UE,Capital,Capital,Business Development & Growth,Architects Fees,3022,Capital Expenditure,Capital,"Order for services for M&S. Lump sum fee of 1,020.00 net. This will include the following: � Review of the recent drawings issued ",16/05/2018,129652,"1,020.00",Capital,AEW Architects & Designers Ltd,66520
Chorley Borough Council,http://statistics.data.gov.uk/id/local-authority/30UE,Capital,Capital,Business Development & Growth,Architects Fees,3022,Capital Expenditure,Capital,Tenant liaison service from April 2018 to September 2019,25/05/2018,129869,"1,140.00",Capital,AEW Architects & Designers Ltd,66520
Chorley Borough Council,http://statistics.data.gov.uk/id/local-authority/30UE,Unapportionable Central OHeads,1009,Customer & Digital,Bank Charges,40151,Miscellaneous Expenses,5034,add ac fee,04/05/2018,129382,10.37,Revenue,Allpay Net Ltd,17242
Chorley Borough Council,http://statistics.data.gov.uk/id/local-authority/30UE,Unapportionable Central OHeads,1009,Customer & Digital,Bank Charges,40151,Miscellaneous Expenses,5034,post off trans,04/05/2018,129382,915.25,Revenue,Allpay Net Ltd,17242
Chorley Borough Council,http://statistics.data.gov.uk/id/local-authority/30UE,Unapportionable Central OHeads,1009,Customer & Digital,Bank Charges,40151,Miscellaneous Expenses,5034,pay point,04/05/2018,129382,580.25,Revenue,Allpay Net Ltd,17242
Chorley Borough Council,http://statistics.data.gov.uk/id/local-authority/30UE,Unapportionable Central OHeads,1009,Customer & Digital,Bank Charges,40151,Miscellaneous Expenses,5034,webcon,04/05/2018,129382,47.72,Revenue,Allpay Net Ltd,17242
Chorley Borough Council,http://statistics.data.gov.uk/id/local-authority/30UE,Development Control,1091,Policy & Governance,Car Leasing Payment,14100,Direct Employee Expenses,5001,NAME REDACTED,23/05/2018,129718,"5,740.68",Revenue,Arnold Clark Finance Ltd,20685
Chorley Borough Council,http://statistics.data.gov.uk/id/local-authority/30UE,Development Control,1091,Policy & Governance,Car Leasing Payment,14100,Direct Employee Expenses,5001,Car Lease,23/05/2018,129718,514.59,Revenue,Arnold Clark Finance Ltd,20685
Chorley Borough Council,http://statistics.data.gov.uk/id/local-authority/30UE,Control Accounts,Control,Policy & Governance,Manual Control Account,1,Balance Sheet,Balance,Balance Sheet,23/05/2018,129718,-514.59,Revenue,Arnold Clark Finance Ltd,20685
Chorley Borough Council,http://statistics.data.gov.uk/id/local-authority/30UE,Central Support Services,1009,Policy & Governance,Car Leasing Payment,14100,Direct Employee Expenses,5001,NAME REDACTED,23/05/2018,129727,"1,903.56",Revenue,Arnold Clark Finance Ltd,20685
Chorley Borough Council,http://statistics.data.gov.uk/id/local-authority/30UE,Central Support Services,1009,Policy & Governance,Car Leasing Payment,14100,Direct Employee Expenses,5001,Car Lease,23/05/2018,129727,153.13,Revenue,Arnold Clark Finance Ltd,20685
Chorley Borough Council,http://statistics.data.gov.uk/id/local-authority/30UE,Control Accounts,Control,Policy & Governance,Manual Control Account,1,Balance Sheet,Balance,Balance Sheet,23/05/2018,129727,-153.13,Revenue,Arnold Clark Finance Ltd,20685
Chorley Borough Council,http://statistics.data.gov.uk/id/local-authority/30UE,Unapportionable Central OHeads,1009,Policy & Governance,Miscellaneous Expenses,40200,Miscellaneous Expenses,5034,Support & Implementation for GDPR,18/05/2018,129717,"1,850.00",Revenue,Attain Group Ltd,61771
Chorley Borough Council,http://statistics.data.gov.uk/id/local-authority/30UE,Control Accounts,Control,Policy & Governance,General Balances,100,Balance Sheet,Balance,cards,22/05/2018,129353,"3,273.16",Revenue,Barclaycard Commercial,59848
Chorley Borough Council,http://statistics.data.gov.uk/id/local-authority/30UE,Corporate Management,1008,Policy & Governance,Bank Charges,40151,Miscellaneous Expenses,5034,Bank Charge,22/05/2018,128831,"1,359.31",Revenue,Barclaycard Merchant Services,61601
Chorley Borough Council,http://statistics.data.gov.uk/id/local-authority/30UE,Corporate Management,1008,Policy & Governance,Bank Charges,40151,Miscellaneous Expenses,5034,Bank Charge,22/05/2018,128832,247.92,Revenue,Barclaycard Merchant Services,61601
Chorley Borough Council,http://statistics.data.gov.uk/id/local-authority/30UE,Corporate Management,1008,Policy & Governance,Bank Charges,40151,Miscellaneous Expenses,5034,Bank Charge,22/05/2018,128832,26.00,Revenue,Barclaycard Merchant Services,61601
Chorley Borough Council,http://statistics.data.gov.uk/id/local-authority/30UE,Corporate Management,1008,Policy & Governance,Bank Charges,40151,Miscellaneous Expenses,5034,Bank Charge,22/05/2018,128889,430.76,Revenue,Barclaycard Merchant Services,61601
Chorley Borough Council,http://statistics.data.gov.uk/id/local-authority/30UE,Corporate Management,1008,Policy & Governance,Bank Charges,40151,Miscellaneous Expenses,5034,Bank Charge,22/05/2018,128890,872.18,Revenue,Barclaycard Merchant Services,61601
Chorley Borough Council,http://statistics.data.gov.uk/id/local-authority/30UE,Corporate Management,1008,Policy & Governance,Bank Charges,40151,Miscellaneous Expenses,5034,1/4/18 to 30/4/18,22/05/2018,129654,"1,037.08",Revenue,Barclaycard Merchant Services,61601
Chorley Borough Council,http://statistics.data.gov.uk/id/local-authority/30UE,Corporate Management,1008,Policy & Governance,Bank Charges,40151,Miscellaneous Expenses,5034,Bank Charge,22/05/2018,129657,583.73,Revenue,Barclaycard Merchant Services,61601
Chorley Borough Council,http://statistics.data.gov.uk/id/local-authority/30UE,Corporate Management,1008,Policy & Governance,Bank Charges,40151,Miscellaneous Expenses,5034,Bank Charge,22/05/2018,129658,263.27,Revenue,Barclaycard Merchant Services,61601
Chorley Borough Council,http://statistics.data.gov.uk/id/local-authority/30UE,Corporate Management,1008,Policy & Governance,Bank Charges,40151,Miscellaneous Expenses,5034,Bank Charge,22/05/2018,129658,26.00,Revenue,Barclaycard Merchant Services,61601
Chorley Borough Council,http://statistics.data.gov.uk/id/local-authority/30UE,Corporate Management,1008,Policy & Governance,Bank Charges,40151,Miscellaneous Expenses,5034,Bank Charge,22/05/2018,129659,"2,634.49",Revenue,Barclaycard Merchant Services,61601
Chorley Borough Council,http://statistics.data.gov.uk/id/local-authority/30UE,Service Management & Support,1009,Customer & Digital,Tools & Equipment - Purchase,40003,"Equipment, Furniture & Materia",5023,GX126 - trailer as per quote sent by NAME REDACTED - Sales Order SO-C00950743 Order Ref.270218MM,02/05/2018,129305,"2,735.00",Revenue,Barlow Trailers Ltd,47717
Chorley Borough Council,http://statistics.data.gov.uk/id/local-authority/30UE,Service Management & Support,1009,Customer & Digital,Tools & Equipment - Purchase,40003,"Equipment, Furniture & Materia",5023,GX126 - trailer as per quote sent by NAME REDACTED - Sales Order SO-C00953219,18/05/2018,129762,"2,735.00",Revenue,Barlow Trailers Ltd,47717
Chorley Borough Council,http://statistics.data.gov.uk/id/local-authority/30UE,Central Support Services,1009,Business Development & Growth,Professional Fees,40063,Services,5027,"Architecture works for Cowling, Chorley. Joint venture with Homes England",04/05/2018,128951,"6,721.00",Revenue,BDP,77191
Chorley Borough Council,http://statistics.data.gov.uk/id/local-authority/30UE,Homelessness,1075,Early Intervention,Laundry,40042,"Clothing, Uniforms and Laundry",5025,Weekly linen Service,04/05/2018,129329,295.51,Revenue,Berendsen UK Ltd,20799
Chorley Borough Council,http://statistics.data.gov.uk/id/local-authority/30UE,Homelessness,1075,Early Intervention,Laundry,40042,"Clothing, Uniforms and Laundry",5025,Weekly linen Service,30/05/2018,129966,299.32,Revenue,Berendsen UK Ltd,20799
Chorley Borough Council,http://statistics.data.gov.uk/id/local-authority/30UE,Business Support,1095,Business Development & Growth,Christmas Lights,40179,Miscellaneous Expenses,5034,correct charge with vat,02/05/2018,129346,"8,709.00",Revenue,Blackpool Borough Council,16518
Chorley Borough Council,http://statistics.data.gov.uk/id/local-authority/30UE,Economic Development,1096,Business Development & Growth,Christmas Lights,40179,Miscellaneous Expenses,5034,correct charge with vat,02/05/2018,129347,"25,473.00",Revenue,Blackpool Borough Council,16518
Chorley Borough Council,http://statistics.data.gov.uk/id/local-authority/30UE,Unapportionable Central OHeads,1009,Policy & Governance,Training Course Fees,17010,Indirect Employee Expenses,5002,Professional Skills Course Core and Elective Package,18/05/2018,129540,"1,297.00",Revenue,BPP Professional Education,20979
Chorley Borough Council,http://statistics.data.gov.uk/id/local-authority/30UE,Unapportionable Central OHeads,1009,Business Development & Growth,Asset Maintenance Fund,20012,Repairs Maintenance & Alts,5005,"works to the policy and comms room, Town Hall",02/05/2018,129179,"1,800.00",Revenue,Branagan Flooring Services Ltd,77228
Chorley Borough Council,http://statistics.data.gov.uk/id/local-authority/30UE,Corporate Management,1008,Customer & Digital,Certificate Of Burial Fees,60080,Customer & Client Receipts,5064,REFUND,23/05/2018,129814,848.50,Revenue,NAME REDACTED,77348
Chorley Borough Council,http://statistics.data.gov.uk/id/local-authority/30UE,Community Development,1097,Policy & Governance,Gas,20014,Energy Costs,5006,Energy Costs,02/05/2018,129229,80.77,Revenue,British Gas Business,22242
Chorley Borough Council,http://statistics.data.gov.uk/id/local-authority/30UE,Democratic Represent and  Mgnt,1007,Policy & Governance,Gas,20014,Energy Costs,5006,Energy Costs,02/05/2018,129229,105.98,Revenue,British Gas Business,22242
Chorley Borough Council,http://statistics.data.gov.uk/id/local-authority/30UE,Homelessness,1075,Policy & Governance,Gas,20014,Energy Costs,5006,Energy Costs,02/05/2018,129229,473.75,Revenue,British Gas Business,22242
Chorley Borough Council,http://statistics.data.gov.uk/id/local-authority/30UE,Unapportionable Central OHeads,1009,Policy & Governance,Gas,20014,Energy Costs,5006,Energy Costs,02/05/2018,129229,833.99,Revenue,British Gas Business,22242
Chorley Borough Council,http://statistics.data.gov.uk/id/local-authority/30UE,Unapportionable Central OHeads,1009,Policy & Governance,Gas,20014,Energy Costs,5006,Energy Costs,02/05/2018,129229,945.80,Revenue,British Gas Business,22242
Chorley Borough Council,http://statistics.data.gov.uk/id/local-authority/30UE,Unapportionable Central OHeads,1009,Policy & Governance,Gas,20014,Energy Costs,5006,Energy Costs,02/05/2018,129229,208.47,Revenue,British Gas Business,22242
Chorley Borough Council,http://statistics.data.gov.uk/id/local-authority/30UE,Democratic Represent and  Mgnt,1007,Policy & Governance,Gas,20014,Energy Costs,5006,Energy Costs,02/05/2018,129229,123.43,Revenue,British Gas Business,22242
Chorley Borough Council,http://statistics.data.gov.uk/id/local-authority/30UE,Democratic Represent and  Mgnt,1007,Policy & Governance,Gas,20014,Energy Costs,5006,Energy Costs,02/05/2018,129229,378.93,Revenue,British Gas Business,22242
Chorley Borough Council,http://statistics.data.gov.uk/id/local-authority/30UE,Democratic Represent and  Mgnt,1007,Policy & Governance,Gas,20014,Energy Costs,5006,Energy Costs,02/05/2018,129229,193.68,Revenue,British Gas Business,22242
Chorley Borough Council,http://statistics.data.gov.uk/id/local-authority/30UE,Democratic Represent and  Mgnt,1007,Policy & Governance,Gas,20014,Energy Costs,5006,Energy Costs,02/05/2018,129229,142.01,Revenue,British Gas Business,22242
Chorley Borough Council,http://statistics.data.gov.uk/id/local-authority/30UE,Democratic Represent and  Mgnt,1007,Policy & Governance,Gas,20014,Energy Costs,5006,Energy Costs,02/05/2018,129229,166.89,Revenue,British Gas Business,22242
Chorley Borough Council,http://statistics.data.gov.uk/id/local-authority/30UE,Democratic Represent and  Mgnt,1007,Policy & Governance,Gas,20014,Energy Costs,5006,Energy Costs,02/05/2018,129229,"1,286.96",Revenue,British Gas Business,22242
Chorley Borough Council,http://statistics.data.gov.uk/id/local-authority/30UE,Unapportionable Central OHeads,1009,Policy & Governance,Gas,20014,Energy Costs,5006,British Gas,02/05/2018,129345,"1,105.52",Revenue,British Gas Business,22242
Chorley Borough Council,http://statistics.data.gov.uk/id/local-authority/30UE,Unapportionable Central OHeads,1009,Policy & Governance,Gas,20014,Energy Costs,5006,British Gas,02/05/2018,129345,"1,423.54",Revenue,British Gas Business,22242
Chorley Borough Council,http://statistics.data.gov.uk/id/local-authority/30UE,Democratic Represent and  Mgnt,1007,Policy & Governance,Gas,20014,Energy Costs,5006,British Gas,02/05/2018,129345,"1,104.37",Revenue,British Gas Business,22242
Chorley Borough Council,http://statistics.data.gov.uk/id/local-authority/30UE,Democratic Represent and  Mgnt,1007,Policy & Governance,Gas,20014,Energy Costs,5006,British Gas,02/05/2018,129345,575.14,Revenue,British Gas Business,22242
Chorley Borough Council,http://statistics.data.gov.uk/id/local-authority/30UE,Community Development,1097,Policy & Governance,Gas,20014,Energy Costs,5006,British Gas,02/05/2018,129345,"1,384.69",Revenue,British Gas Business,22242
Chorley Borough Council,http://statistics.data.gov.uk/id/local-authority/30UE,Democratic Represent and  Mgnt,1007,Policy & Governance,Gas,20014,Energy Costs,5006,British Gas,02/05/2018,129345,930.17,Revenue,British Gas Business,22242
Chorley Borough Council,http://statistics.data.gov.uk/id/local-authority/30UE,Democratic Represent and  Mgnt,1007,Policy & Governance,Gas,20014,Energy Costs,5006,British Gas,02/05/2018,129345,909.16,Revenue,British Gas Business,22242
Chorley Borough Council,http://statistics.data.gov.uk/id/local-authority/30UE,Democratic Represent and  Mgnt,1007,Policy & Governance,Gas,20014,Energy Costs,5006,British Gas,02/05/2018,129345,"1,359.50",Revenue,British Gas Business,22242
Chorley Borough Council,http://statistics.data.gov.uk/id/local-authority/30UE,Democratic Represent and  Mgnt,1007,Policy & Governance,Gas,20014,Energy Costs,5006,British Gas,02/05/2018,129345,"1,849.69",Revenue,British Gas Business,22242
Chorley Borough Council,http://statistics.data.gov.uk/id/local-authority/30UE,Homelessness,1075,Policy & Governance,Gas,20014,Energy Costs,5006,British Gas,02/05/2018,129345,"48,239.70",Revenue,British Gas Business,22242
Chorley Borough Council,http://statistics.data.gov.uk/id/local-authority/30UE,Unapportionable Central OHeads,1009,Policy & Governance,Gas,20014,Energy Costs,5006,British Gas,02/05/2018,129345,"12,519.90",Revenue,British Gas Business,22242
Chorley Borough Council,http://statistics.data.gov.uk/id/local-authority/30UE,Unapportionable Central OHeads,1009,Policy & Governance,Gas,20014,Energy Costs,5006,British Gas,02/05/2018,129345,"17,671.25",Revenue,British Gas Business,22242
Chorley Borough Council,http://statistics.data.gov.uk/id/local-authority/30UE,Unapportionable Central OHeads,1009,Policy & Governance,Gas,20014,Energy Costs,5006,British Gas,02/05/2018,129345,"1,393.97",Revenue,British Gas Business,22242
Chorley Borough Council,http://statistics.data.gov.uk/id/local-authority/30UE,Democratic Represent and  Mgnt,1007,Policy & Governance,Gas,20014,Energy Costs,5006,British Gas,02/05/2018,129345,711.66,Revenue,British Gas Business,22242
Chorley Borough Council,http://statistics.data.gov.uk/id/local-authority/30UE,Democratic Represent and  Mgnt,1007,Policy & Governance,Gas,20014,Energy Costs,5006,British Gas,02/05/2018,129345,"4,771.34",Revenue,British Gas Business,22242
Chorley Borough Council,http://statistics.data.gov.uk/id/local-authority/30UE,Community Development,1097,Policy & Governance,Gas,20014,Energy Costs,5006,British Gas,02/05/2018,129345,238.92,Revenue,British Gas Business,22242
Chorley Borough Council,http://statistics.data.gov.uk/id/local-authority/30UE,Democratic Represent and  Mgnt,1007,Policy & Governance,Gas,20014,Energy Costs,5006,British Gas,02/05/2018,129345,"2,924.88",Revenue,British Gas Business,22242
Chorley Borough Council,http://statistics.data.gov.uk/id/local-authority/30UE,Democratic Represent and  Mgnt,1007,Policy & Governance,Gas,20014,Energy Costs,5006,British Gas,02/05/2018,129345,"1,578.14",Revenue,British Gas Business,22242
Chorley Borough Council,http://statistics.data.gov.uk/id/local-authority/30UE,Democratic Represent and  Mgnt,1007,Policy & Governance,Gas,20014,Energy Costs,5006,British Gas,02/05/2018,129345,"1,621.85",Revenue,British Gas Business,22242
Chorley Borough Council,http://statistics.data.gov.uk/id/local-authority/30UE,Democratic Represent and  Mgnt,1007,Policy & Governance,Gas,20014,Energy Costs,5006,British Gas,02/05/2018,129345,"18,606.02",Revenue,British Gas Business,22242
Chorley Borough Council,http://statistics.data.gov.uk/id/local-authority/30UE,Control Accounts,Control,Policy & Governance,Manual Control Account,1,Balance Sheet,Balance,Cheque Refund for Buttermere,11/05/2018,CRREF70,"1,010.65",Revenue,British Gas Business,22242
Chorley Borough Council,http://statistics.data.gov.uk/id/local-authority/30UE,Central Support Services,1009,Customer & Digital,Telephones - Rentals,40083,Communication and Computing,5028,recurring,04/05/2018,129341,"3,566.87",Revenue,British Telecommunications Plc,17131
Chorley Borough Council,http://statistics.data.gov.uk/id/local-authority/30UE,Central Support Services,1009,Customer & Digital,Telephones - Calls,40084,Communication and Computing,5028,usage,04/05/2018,129341,167.99,Revenue,British Telecommunications Plc,17131
Chorley Borough Council,http://statistics.data.gov.uk/id/local-authority/30UE,Central Support Services,1009,Customer & Digital,Telephones - Other,40085,Communication and Computing,5028,one off,04/05/2018,129341,134.00,Revenue,British Telecommunications Plc,17131
Chorley Borough Council,http://statistics.data.gov.uk/id/local-authority/30UE,Central Support Services,1009,Customer & Digital,Miscellaneous Expenses,40200,Miscellaneous Expenses,5034,4 Drop down bollards - Cobden St Backs,02/05/2018,129178,276.66,Revenue,C & W BERRY LIMITED,18180
Chorley Borough Council,http://statistics.data.gov.uk/id/local-authority/30UE,Service Management & Support,1009,Business Development & Growth,External Contractor,40198,Miscellaneous Expenses,5034,"Jetting of the drains at Harpers Lane Recreation Ground, Erskine Road, Chorley",02/05/2018,129131,260.00,Revenue,C J Lyon,16579
Chorley Borough Council,http://statistics.data.gov.uk/id/local-authority/30UE,Service Management & Support,1009,Customer & Digital,Supplies-Grounds Maintenance,40025,"Equipment, Furniture & Materia",5023,"Emptying of interceptor tanks and clearing/jetting drains at Bengal St Depot, to comply with EA Licence conditions, at the agreed",02/05/2018,129330,325.00,Revenue,C J Lyon,16579
Chorley Borough Council,http://statistics.data.gov.uk/id/local-authority/30UE,Unapportionable Central OHeads,1009,Customer & Digital,Emergency Call Out System,40096,Communication and Computing,5028,Out of hours call charges March 2018,04/05/2018,129324,294.84,Revenue,CallCare Ltd,20257
Chorley Borough Council,http://statistics.data.gov.uk/id/local-authority/30UE,Unapportionable Central OHeads,1009,Customer & Digital,Emergency Call Out System,40096,Communication and Computing,5028,Out of hours standing charge May 2018 (including bank holidays),04/05/2018,129324,170.00,Revenue,CallCare Ltd,20257
Chorley Borough Council,http://statistics.data.gov.uk/id/local-authority/30UE,Unapportionable Central OHeads,1009,Customer & Digital,Emergency Call Out System,40096,Communication and Computing,5028,Out of hours call charges April 2018,09/05/2018,129395,740.88,Revenue,CallCare Ltd,20257
Chorley Borough Council,http://statistics.data.gov.uk/id/local-authority/30UE,Unapportionable Central OHeads,1009,Customer & Digital,Emergency Call Out System,40096,Communication and Computing,5028,Out of hours standing charge June 2018,09/05/2018,129395,120.00,Revenue,CallCare Ltd,20257
Chorley Borough Council,http://statistics.data.gov.uk/id/local-authority/30UE,Unapportionable Central OHeads,1009,Policy & Governance,Refuse Collection,20037,Cleaning and Domestic Supplies,5012,"Provision of all services to Council sites Fragrances, mats, medical waste, vending machines April 18 to March 19",16/05/2018,129135,"1,514.49",Revenue,Cannon Hygiene Limited,18158
Chorley Borough Council,http://statistics.data.gov.uk/id/local-authority/30UE,Central Support Services,1009,Customer & Digital,Other Fees,40212,Miscellaneous Expenses,5034,"INVOICE 401953435 Date 28&#8722;12&#8722;2017 Contract no. GB&#8722;505918&#8722;OKS 1,961.57 Contract no. ",16/05/2018,129638,"2,087.31",Revenue,Canon (UK) Ltd,17492
Chorley Borough Council,http://statistics.data.gov.uk/id/local-authority/30UE,Central Support Services,1009,Customer & Digital,Other Fees,40212,Miscellaneous Expenses,5034,"INVOICE 401979135 Date 28&#8722;03&#8722;2018 Contract no. GB&#8722;505918&#8722;OKS 1,451.32 Contract no. ",16/05/2018,129639,"1,573.84",Revenue,Canon (UK) Ltd,17492
Chorley Borough Council,http://statistics.data.gov.uk/id/local-authority/30UE,Unapportionable Central OHeads,1009,Customer & Digital,Computer Software-Maintenance,40107,Communication and Computing,5028,2018 19 Annual Licence (6K) and Annual R&B maintenance payment (32K),02/05/2018,129080,"38,000.00",Revenue,Capita Business Services Ltd,17151
Chorley Borough Council,http://statistics.data.gov.uk/id/local-authority/30UE,Housing Benefit Administration,1077,Customer & Digital,Computer Software-Additional,40102,Communication and Computing,5028,DWP LA Data sharing programme: IT costs for work completed to 31 March 2018 per correspondence dated 26.04.18.,18/05/2018,129760,"3,778.63",Revenue,Capita Business Services Ltd,17151
Chorley Borough Council,http://statistics.data.gov.uk/id/local-authority/30UE,Service Management & Support,1009,Customer & Digital,Tools & Equipment - Purchase,40003,"Equipment, Furniture & Materia",5023,Powerheart G5 AED Fully Automatic Defibrillator as per quotation KG180257,23/05/2018,129825,"1,410.00",Revenue,Cardiac Science,60486
Chorley Borough Council,http://statistics.data.gov.uk/id/local-authority/30UE,Economic Development,1096,Business Development & Growth,Miscellaneous Expenses,40200,Miscellaneous Expenses,5034,For keynote speaker costs for Annual Business Network event 19th April 2018,04/05/2018,129426,221.21,Revenue,Champions (UK) plc,77262
Chorley Borough Council,http://statistics.data.gov.uk/id/local-authority/30UE,Economic Development,1096,Business Development & Growth,Miscellaneous Expenses,40200,Miscellaneous Expenses,5034,hotel,04/05/2018,129426,102.50,Revenue,Champions (UK) plc,77262
Chorley Borough Council,http://statistics.data.gov.uk/id/local-authority/30UE,Corporate Management,1008,Early Intervention,Taxi Testing & Vehicle Safety Report,40234,Services,5027,mot,04/05/2018,129383,"1,371.25",Revenue,Chorley Autocare Ltd,17110
Chorley Borough Council,http://statistics.data.gov.uk/id/local-authority/30UE,Corporate Management,1008,Early Intervention,Taxi Testing & Vehicle Safety Report,40234,Services,5027,taxi test,04/05/2018,129383,213.75,Revenue,Chorley Autocare Ltd,17110
Chorley Borough Council,http://statistics.data.gov.uk/id/local-authority/30UE,Democratic Represent and  Mgnt,1007,Policy & Governance,Grants To Other Organisations,40127,Grants and Subscriptions,5031,GRANT250.00,02/05/2018,129264,250.00,Revenue,Chorley Couch to 5K,77336
Chorley Borough Council,http://statistics.data.gov.uk/id/local-authority/30UE,Democratic Represent and  Mgnt,1007,Policy & Governance,Grants To Other Organisations,40127,Grants and Subscriptions,5031,GRANT,23/05/2018,129739,250.00,Revenue,Chorley Fairtrade Group,77366
Chorley Borough Council,http://statistics.data.gov.uk/id/local-authority/30UE,Control Accounts,Control,Policy & Governance,Manual Control Account,1,Balance Sheet,Balance,Refund of Duplicate payment Inv. 6072294,30/05/2018,CRREF72,463.06,Revenue,Chubb Electronic Sec Sys Ltd,16228
Chorley Borough Council,http://statistics.data.gov.uk/id/local-authority/30UE,Economic Development,1096,Business Development & Growth,Tools & Equipment - Maintenance,40005,"Equipment, Furniture & Materia",5023,"Please supply : 10 x Corner pieces with black frame 35.00 each 6  x Cross members 25.00 each Assorted rivets, self locking",23/05/2018,129815,500.00,Revenue,City B Group Ltd,47300
Chorley Borough Council,http://statistics.data.gov.uk/id/local-authority/30UE,Homelessness,1075,Early Intervention,Computer Software-Maintenance,40107,Communication and Computing,5028,"2018 - 2019 Licence, Support and Maintenance Schedule. Period: 1 July 2018 to 30 June 2019 HOM & TA EXP -Hosting for CBC",23/05/2018,129842,"3,566.59",Revenue,Civica UK Limited,17463
Chorley Borough Council,http://statistics.data.gov.uk/id/local-authority/30UE,Homelessness,1075,Early Intervention,Computer Software-Maintenance,40107,Communication and Computing,5028,HOM & TA EXP -Support & Maintenance,23/05/2018,129842,"5,482.73",Revenue,Civica UK Limited,17463
Chorley Borough Council,http://statistics.data.gov.uk/id/local-authority/30UE,Homelessness,1075,Early Intervention,Computer Software-Maintenance,40107,Communication and Computing,5028,HOM & TA EXP - SSL security on test site for Chorley Borough Council,23/05/2018,129842,27.56,Revenue,Civica UK Limited,17463
Chorley Borough Council,http://statistics.data.gov.uk/id/local-authority/30UE,Homelessness,1075,Early Intervention,Computer Software-Maintenance,40107,Communication and Computing,5028,HOM & TA EXP -Enhanced disaster recovery service fee,23/05/2018,129842,698.99,Revenue,Civica UK Limited,17463
Chorley Borough Council,http://statistics.data.gov.uk/id/local-authority/30UE,Homelessness,1075,Early Intervention,Computer Software-Maintenance,40107,Communication and Computing,5028,HOM & TA EXP - Hosting of mobile website,23/05/2018,129842,54.02,Revenue,Civica UK Limited,17463
Chorley Borough Council,http://statistics.data.gov.uk/id/local-authority/30UE,Homelessness,1075,Early Intervention,Computer Software-Maintenance,40107,Communication and Computing,5028,HOM & TA EXP -Support &Maintenance of mobile website,23/05/2018,129842,54.02,Revenue,Civica UK Limited,17463
Chorley Borough Council,http://statistics.data.gov.uk/id/local-authority/30UE,Capital,Capital,Business Development & Growth,Other Expenses,3030,Capital Expenditure,Capital,As per quote dated 10.10.17  Please disconnect structure reference no: 3304-0047,11/05/2018,129494,"1,145.25",Capital,Clear Channel UK Ltd,19544
Chorley Borough Council,http://statistics.data.gov.uk/id/local-authority/30UE,Capital,Capital,Business Development & Growth,Other Expenses,3030,Capital Expenditure,Capital,Removal of structure reference no 3304-0047,11/05/2018,129494,900.00,Capital,Clear Channel UK Ltd,19544
Chorley Borough Council,http://statistics.data.gov.uk/id/local-authority/30UE,Unapportionable Central OHeads,1009,Policy & Governance,Miscellaneous Expenses,40200,Miscellaneous Expenses,5034,PA Provision,02/05/2018,129314,490.00,Revenue,Compact Audio,75360
Chorley Borough Council,http://statistics.data.gov.uk/id/local-authority/30UE,Unapportionable Central OHeads,1009,Business Development & Growth,General Repairs - Reactive,20004,Repairs Maintenance & Alts,5005,Blanket Order for reactive repairs WEF 1/4/17,04/05/2018,129377,256.05,Revenue,Corlett Electrical Eng Co Ltd,16271
Chorley Borough Council,http://statistics.data.gov.uk/id/local-authority/30UE,Unapportionable Central OHeads,1009,Business Development & Growth,General Repairs - Reactive,20004,Repairs Maintenance & Alts,5005,Blanket Order for reactive repairs WEF 1/4/17,04/05/2018,129387,322.59,Revenue,Corlett Electrical Eng Co Ltd,16271
Chorley Borough Council,http://statistics.data.gov.uk/id/local-authority/30UE,Unapportionable Central OHeads,1009,Business Development & Growth,General Repairs - Reactive,20004,Repairs Maintenance & Alts,5005,Blanket Order for reactive repairs WEF 1/4/17,04/05/2018,129388,268.83,Revenue,Corlett Electrical Eng Co Ltd,16271
Chorley Borough Council,http://statistics.data.gov.uk/id/local-authority/30UE,Economic Development,1096,Business Development & Growth,Fixtures & Fittings - Purchase,20027,Fixtures and Fittings,5010,install an additional 8 LED fittings on Chorley Market.,23/05/2018,129744,969.48,Revenue,Corlett Electrical Eng Co Ltd,16271
Chorley Borough Council,http://statistics.data.gov.uk/id/local-authority/30UE,Recreation & Sport,1037,Business Development & Growth,Gas,20014,Energy Costs,5006,buttermere,02/05/2018,129208,390.94,Revenue,Corona Energy Retail 2 Ltd,67249
Chorley Borough Council,http://statistics.data.gov.uk/id/local-authority/30UE,Homelessness,1075,Business Development & Growth,Gas,20014,Energy Costs,5006,cotswold house,02/05/2018,129214,"1,066.17",Revenue,Corona Energy Retail 2 Ltd,67249
Chorley Borough Council,http://statistics.data.gov.uk/id/local-authority/30UE,Democratic Represent and  Mgnt,1007,Business Development & Growth,Gas,20014,Energy Costs,5006,astley hall,02/05/2018,129219,563.34,Revenue,Corona Energy Retail 2 Ltd,67249
Chorley Borough Council,http://statistics.data.gov.uk/id/local-authority/30UE,Unapportionable Central OHeads,1009,Business Development & Growth,Gas,20014,Energy Costs,5006,civic off union st,02/05/2018,129220,488.01,Revenue,Corona Energy Retail 2 Ltd,67249
Chorley Borough Council,http://statistics.data.gov.uk/id/local-authority/30UE,Unapportionable Central OHeads,1009,Business Development & Growth,Gas,20014,Energy Costs,5006,town hall,02/05/2018,129221,661.17,Revenue,Corona Energy Retail 2 Ltd,67249
Chorley Borough Council,http://statistics.data.gov.uk/id/local-authority/30UE,Democratic Represent and  Mgnt,1007,Business Development & Growth,Gas,20014,Energy Costs,5006,astley coach hse,02/05/2018,129224,340.00,Revenue,Corona Energy Retail 2 Ltd,67249
Chorley Borough Council,http://statistics.data.gov.uk/id/local-authority/30UE,Unapportionable Central OHeads,1009,Policy & Governance,HR Approved Training Expenses,17001,Indirect Employee Expenses,5002,"HR Team Day, plus DISC profiles, plus travel expenses",02/05/2018,129320,"1,510.10",Revenue,Create Edge Ltd,77142
Chorley Borough Council,http://statistics.data.gov.uk/id/local-authority/30UE,Unapportionable Central OHeads,1009,Policy & Governance,HR Approved Training Expenses,17001,Indirect Employee Expenses,5002,Coaching Sessions on 27/04/18 plus travel expenses,02/05/2018,129321,"1,235.10",Revenue,Create Edge Ltd,77142
Chorley Borough Council,http://statistics.data.gov.uk/id/local-authority/30UE,Democratic Represent and  Mgnt,1007,Policy & Governance,Grants To Other Organisations,40127,Grants and Subscriptions,5031,GRANT,25/05/2018,129884,250.00,Revenue,Croston in bloom,77378
Chorley Borough Council,http://statistics.data.gov.uk/id/local-authority/30UE,Development Control,1091,Customer & Digital,Legal Fees,40171,Miscellaneous Expenses,5034,"Planning Appeal re replacement of tack room and store, land at Back House Farm, Hall Lane",09/05/2018,129265,"2,650.00",Revenue,CW Planning Solutions Ltd,77340
Chorley Borough Council,http://statistics.data.gov.uk/id/local-authority/30UE,Other Short Term Debtors,,Policy & Governance,Other Debtors,98,Balance Sheet,Balance,Cycle Scheme for NAME REDACTED,02/05/2018,129311,504.17,Revenue,Cyclescheme Ltd,22390
Chorley Borough Council,http://statistics.data.gov.uk/id/local-authority/30UE,Other Short Term Debtors,,Policy & Governance,Other Debtors,98,Balance Sheet,Balance,Cycle Scheme for NAME REDACTED,16/05/2018,129689,833.33,Revenue,Cyclescheme Ltd,22390
Chorley Borough Council,http://statistics.data.gov.uk/id/local-authority/30UE,Central Support Services,1009,Customer & Digital,Computer Equipment-Maintenance,40105,Communication and Computing,5028,4 x (Seagate Barracuda XT 3TB SATA 72K 3.5`` 512 HDD ) @ 69.00,16/05/2018,129024,288.00,Revenue,DAC Technology Ltd,76398
Chorley Borough Council,http://statistics.data.gov.uk/id/local-authority/30UE,Central Support Services,1009,Customer & Digital,Computer Equipment-Purchase,40098,Communication and Computing,5028,4 x APC AP8858EU3 Server Rack PDUs 409,16/05/2018,129344,"1,648.00",Revenue,DAC Technology Ltd,76398
Chorley Borough Council,http://statistics.data.gov.uk/id/local-authority/30UE,Unapportionable Central OHeads,1009,Policy & Governance,Postages,40082,Communication and Computing,5028,Renewal cost for DX Services 1 May 2018 - 30 April 2019,23/05/2018,129838,266.24,Revenue,DX Network Services Ltd,17551
Chorley Borough Council,http://statistics.data.gov.uk/id/local-authority/30UE,Business Support,1095,Business Development & Growth,Electricity,20013,Energy Costs,5006,market st,04/05/2018,129266,231.05,Revenue,E.On,21330
Chorley Borough Council,http://statistics.data.gov.uk/id/local-authority/30UE,Business Support,1095,Business Development & Growth,Electricity,20013,Energy Costs,5006,,04/05/2018,129266,65.71,Revenue,E.On,21330
Chorley Borough Council,http://statistics.data.gov.uk/id/local-authority/30UE,Democratic Represent and  Mgnt,1007,Customer & Digital,Supplies-Grounds Maintenance,40025,"Equipment, Furniture & Materia",5023,Supply 4 willow figures 1 - willow athlete 1- willow basketball player 1 - Willow rugby player 1 willow footballer,16/05/2018,129630,"2,100.00",Revenue,Eco-Arts,21984
Chorley Borough Council,http://statistics.data.gov.uk/id/local-authority/30UE,Central Support Services,1009,Customer & Digital,Mobile Voice and Data,40086,Communication and Computing,5028,May-18,11/05/2018,129482,468.95,Revenue,EE - Orange,16486
Chorley Borough Council,http://statistics.data.gov.uk/id/local-authority/30UE,Central Support Services,1009,Customer & Digital,Mobile Voice and Data,40086,Communication and Computing,5028,,16/05/2018,129656,779.00,Revenue,EE - Orange,16486
Chorley Borough Council,http://statistics.data.gov.uk/id/local-authority/30UE,Central Support Services,1009,Customer & Digital,Mobile Voice and Data,40086,Communication and Computing,5028,charges,16/05/2018,129631,"2,240.21",Revenue,EE LIMITED,63366
Chorley Borough Council,http://statistics.data.gov.uk/id/local-authority/30UE,Capital,Capital,Business Development & Growth,Main Contractor,3007,Capital Expenditure,Capital,Primrose gardens Valuation Statements,02/05/2018,128757,"23,173.62",Capital,Eric Wright Construction Ltd,76464
Chorley Borough Council,http://statistics.data.gov.uk/id/local-authority/30UE,Capital,Capital,Business Development & Growth,Main Contractor,3007,Capital Expenditure,Capital,,02/05/2018,128757,"187,495.64",Capital,Eric Wright Construction Ltd,76464
Chorley Borough Council,http://statistics.data.gov.uk/id/local-authority/30UE,Capital,Capital,Business Development & Growth,Main Contractor,3007,Capital Expenditure,Capital,"Oak House � Demolition, asbestos removal, lighting & creation of a surface car park as detailed in EWC cost plan",11/05/2018,129454,"66,220.85",Capital,Eric Wright Construction Ltd,76464
Chorley Borough Council,http://statistics.data.gov.uk/id/local-authority/30UE,Capital,Capital,Business Development & Growth,Main Contractor,3007,Capital Expenditure,Capital,"Friday Street � Resurfacing, drainage improvements & erection of a decked car park as detailed in EWC cost plan",11/05/2018,129455,"42,302.89",Capital,Eric Wright Construction Ltd,76464
Chorley Borough Council,http://statistics.data.gov.uk/id/local-authority/30UE,Capital,Capital,Business Development & Growth,Main Contractor,3007,Capital Expenditure,Capital,Primrose gardens Valuation Statements,11/05/2018,129530,"188,973.90",Capital,Eric Wright Construction Ltd,76464
Chorley Borough Council,http://statistics.data.gov.uk/id/local-authority/30UE,Capital,Capital,Business Development & Growth,Main Contractor,3007,Capital Expenditure,Capital,,11/05/2018,129530,"23,356.32",Capital,Eric Wright Construction Ltd,76464
Chorley Borough Council,http://statistics.data.gov.uk/id/local-authority/30UE,Capital,Capital,Business Development & Growth,Main Contractor,3007,Capital Expenditure,Capital,"Oak House � Demolition, asbestos removal, lighting & creation of a surface car park as detailed in EWC cost plan",23/05/2018,129661,"20,022.61",Capital,Eric Wright Construction Ltd,76464
Chorley Borough Council,http://statistics.data.gov.uk/id/local-authority/30UE,Corporate Management,1008,Customer & Digital,Printing,40043,"Printing, Stationery & General",5026,"Garden waste permits 2018-19: Garden waste stickers, letters, envelopes, picking-and-packing and mailing - and customer cloud",23/05/2018,129776,"6,225.80",Revenue,Euro Labels Printers Ltd,77202
Chorley Borough Council,http://statistics.data.gov.uk/id/local-authority/30UE,Recognised Cap Grants & Conts,,Business Development & Growth,Contributions Parish Councils,40144,Grants and Subscriptions,5031,cil receipt,02/05/2018,129058,"130,102.58",Revenue,Euxton Parish Council,16838
Chorley Borough Council,http://statistics.data.gov.uk/id/local-authority/30UE,Economic Development,1096,Business Development & Growth,Miscellaneous Expenses,40200,Miscellaneous Expenses,5034,For Chorley contribution to Central Lancashire Business Event October 2018,30/05/2018,129904,750.00,Revenue,Events Northern Limited,20565
Chorley Borough Council,http://statistics.data.gov.uk/id/local-authority/30UE,Democratic Represent and  Mgnt,1007,Customer & Digital,Supplies-Grounds Maintenance,40025,"Equipment, Furniture & Materia",5023,10 - 10 litre Phormiums 20 - 5 litre Pieris 20 Euonymus ` Emerald Gaiety` 40 Heuchera `Palace Purple` 40 Lavandula angustifolia,02/05/2018,129307,765.50,Revenue,Everglades Nurseries Ltd,20202
Chorley Borough Council,http://statistics.data.gov.uk/id/local-authority/30UE,Planning Policy,1092,Business Development & Growth,Asset Maintenance Fund,20012,Repairs Maintenance & Alts,5005,ground works on Hut Lane,04/05/2018,129355,"15,980.00",Revenue,Excavation and Contracting,77337
Chorley Borough Council,http://statistics.data.gov.uk/id/local-authority/30UE,Service Management & Support,1009,Customer & Digital,Supplies - Workshop,40246,"Equipment, Furniture & Materia",5023,For various items as listed in Pro- Forma No 127723 including; Engine assembly gearbox scraper wires,02/05/2018,129270,880.02,Revenue,F R Sharrock Ltd,18091
Chorley Borough Council,http://statistics.data.gov.uk/id/local-authority/30UE,Business Support,1095,Business Development & Growth,Grants To Other Organisations,40127,Grants and Subscriptions,5031,sibn grant,30/05/2018,129788,250.00,Revenue,NAME REDACTED,77327
Chorley Borough Council,http://statistics.data.gov.uk/id/local-authority/30UE,Tourism,1039,Policy & Governance,Furniture - Hire,40013,"Equipment, Furniture & Materia",5023,Flower Show Marquees,02/05/2018,129271,"7,710.48",Revenue,Field and Lawn Ltd,74977
Chorley Borough Council,http://statistics.data.gov.uk/id/local-authority/30UE,Private Sector HSG Renewal,1073,Early Intervention,Miscellaneous Expenses,40200,Miscellaneous Expenses,5034,,23/05/2018,129767,"1,676.00",Revenue,Firefly Energi Ltd,69925
Chorley Borough Council,http://statistics.data.gov.uk/id/local-authority/30UE,Unapportionable Central OHeads,1009,Policy & Governance,Legal Fees,40171,Miscellaneous Expenses,5034,Invoice No 499081 - Professional Fees from 26/03/18 to 27/04/18 ,16/05/2018,129714,"2,904.50",Revenue,Forbes Solicitors,17527
Chorley Borough Council,http://statistics.data.gov.uk/id/local-authority/30UE,Central Support Services,1009,Early Intervention,Sports Development Initiatives,40186,Miscellaneous Expenses,5034,ins,16/05/2018,129632,287.00,Revenue,Forgarty Insurance Srvs,77344
Chorley Borough Council,http://statistics.data.gov.uk/id/local-authority/30UE,Democratic Represent and  Mgnt,1007,Policy & Governance,Furniture - Purchase,40012,"Equipment, Furniture & Materia",5023,As discussed with NAME REDACTED at furniture@work same size tables as ordered before. Contour Plus GOPAK Adult table ,04/05/2018,129370,437.00,Revenue,Furniture@Work Ltd,22138
Chorley Borough Council,http://statistics.data.gov.uk/id/local-authority/30UE,Service Management & Support,1009,Customer & Digital,Vehicles and Plant Maintenance,30045,Direct Transport Costs,5016,Complete repairs to AE14 AXX as per your invoice 89622.,11/05/2018,129554,380.00,Revenue,G & S Auto Electrical Services,16323
Chorley Borough Council,http://statistics.data.gov.uk/id/local-authority/30UE,Democratic Represent and  Mgnt,1007,Policy & Governance,Burglar Alarms & Security Systems,20075,Fixtures and Fittings,5010,G4S Key holding services for Astley Hall Museum and Art Gallery Contract Number 4101679,18/05/2018,129763,819.16,Revenue,G4S Secure Solutions (UK) Ltd,59898
Chorley Borough Council,http://statistics.data.gov.uk/id/local-authority/30UE,Business Support,1095,Business Development & Growth,Gas,20014,Energy Costs,5006,26 gilibrand st,11/05/2018,129472,435.25,Revenue,Gazprom Energy,56502
Chorley Borough Council,http://statistics.data.gov.uk/id/local-authority/30UE,Unapportionable Central OHeads,1009,Business Development & Growth,General Repairs - Reactive,20004,Repairs Maintenance & Alts,5005,blanket order for reactive repairs,23/05/2018,129531,335.00,Revenue,Geze UK Ltd,18836
Chorley Borough Council,http://statistics.data.gov.uk/id/local-authority/30UE,Democratic Represent and  Mgnt,1007,Business Development & Growth,Playground Equipment,40008,"Equipment, Furniture & Materia",5023,Power wash the MUGA at Clayton Brook using high pressure water 440 and removal of any graffiti on the MUGA shelter.160,02/05/2018,129225,600.00,Revenue,Graffiti Away,76316
Chorley Borough Council,http://statistics.data.gov.uk/id/local-authority/30UE,Central Support Services,1009,Early Intervention,Vandalism Repairs,20005,Repairs Maintenance & Alts,5005,Contract for Graffiti removal 2017,11/05/2018,129272,750.00,Revenue,Graffiti Away,76316
Chorley Borough Council,http://statistics.data.gov.uk/id/local-authority/30UE,Central Support Services,1009,Early Intervention,Vandalism Repairs,20005,Repairs Maintenance & Alts,5005,Contract for Graffiti removal 2017,30/05/2018,129694,805.00,Revenue,Graffiti Away,76316
Chorley Borough Council,http://statistics.data.gov.uk/id/local-authority/30UE,Corporate Management,1008,Policy & Governance,Publicity - Advertising,40157,Miscellaneous Expenses,5034,Buckshaw Village Magazine Advert,23/05/2018,129857,895.00,Revenue,Green Man Marketing,73050
Chorley Borough Council,http://statistics.data.gov.uk/id/local-authority/30UE,Development Control,1091,Customer & Digital,General Subscriptions,40146,Grants and Subscriptions,5031,DCP Online Subscription 1/4/18 - 31/3/19,23/05/2018,129686,"1,880.00",Revenue,Haymarket Publishing Services Ltd,16347
Chorley Borough Council,http://statistics.data.gov.uk/id/local-authority/30UE,Planning Policy,1092,Policy & Governance,Publicity - Advertising,40157,Miscellaneous Expenses,5034,Advertising for Central Lancashire Local Plan vacancies,25/05/2018,129899,"3,700.00",Revenue,Haymarket Publishing Services Ltd,16347
Chorley Borough Council,http://statistics.data.gov.uk/id/local-authority/30UE,Development Control,1091,Policy & Governance,HR Recruitment - Advertising,15300,Indirect Employee Expenses,5002,Advertising for Planning Enforcement roles,25/05/2018,129900,"2,000.00",Revenue,Haymarket Publishing Services Ltd,16347
Chorley Borough Council,http://statistics.data.gov.uk/id/local-authority/30UE,Unapportionable Central OHeads,1009,Customer & Digital,General Subscriptions,40146,Grants and Subscriptions,5031,Subscription to hbinfo for 1 year for 18/19.  A rate (425),04/05/2018,129417,425.00,Revenue,Hbinfo Ltd,19710
Chorley Borough Council,http://statistics.data.gov.uk/id/local-authority/30UE,Economic Development,1096,Business Development & Growth,Miscellaneous Expenses,40200,Miscellaneous Expenses,5034,For production of video files for Choose Chorley April 2018 event,09/05/2018,129490,950.00,Revenue,Heckfords,58862
Chorley Borough Council,http://statistics.data.gov.uk/id/local-authority/30UE,Unapportionable Central OHeads,1009,Business Development & Growth,General Repairs - Reactive,20004,Repairs Maintenance & Alts,5005,Hire of Hinowa Light Lift 17.75 IIIS Quote ref 0063022,04/05/2018,129073,792.00,Revenue,Height for Hire Ltd,77303
Chorley Borough Council,http://statistics.data.gov.uk/id/local-authority/30UE,Recreation & Sport,1037,Early Intervention,Miscellaneous Expenses,40200,Miscellaneous Expenses,5034,"Astley Village-As per quote Decorating-Ladies, Gents and Accessible Toilet-375 Decorating-All entrances/foyer-375 Decorating",04/05/2018,129430,890.00,Revenue,Henry Nightingale & Son,17923
Chorley Borough Council,http://statistics.data.gov.uk/id/local-authority/30UE,Recreation & Sport,1037,Early Intervention,Miscellaneous Expenses,40200,Miscellaneous Expenses,5034,"Tatton CC-Ladies, Gents and Accessible Toilets-375 Tatton CC-Entrance/Hallway-375",04/05/2018,129430,750.00,Revenue,Henry Nightingale & Son,17923
Chorley Borough Council,http://statistics.data.gov.uk/id/local-authority/30UE,Central Support Services,1009,Customer & Digital,Other Fees,40212,Miscellaneous Expenses,5034,Data destruction on hard drives 599.00 + vat,02/05/2018,129174,599.00,Revenue,ICT Reverse asset Management Limited,77276
Chorley Borough Council,http://statistics.data.gov.uk/id/local-authority/30UE,Open Spaces,1038,Business Development & Growth,Professional Fees,40063,Services,5027,Project work for Westway Sports Campus,02/05/2018,129315,"1,660.00",Revenue,Identity Consult Ltd,76426
Chorley Borough Council,http://statistics.data.gov.uk/id/local-authority/30UE,Central Support Services,1009,Customer & Digital,Computer Software-Additional,40102,Communication and Computing,5028,Bundle of Idox products/services � Corporate DMS/GDPR/Enterprise.,16/05/2018,129160,"22,500.00",Revenue,IDOX Software Limited,17542
Chorley Borough Council,http://statistics.data.gov.uk/id/local-authority/30UE,Elections,1012,Policy & Governance,Computer Software-Maintenance,40107,Communication and Computing,5028,Annual support & maintenance  LPg interface and annual support VDF licences Web EROS,18/05/2018,129768,"9,372.70",Revenue,IDOX Software Limited,17542
Chorley Borough Council,http://statistics.data.gov.uk/id/local-authority/30UE,Unapportionable Central OHeads,1009,Policy & Governance,Miscellaneous Expenses,40200,Miscellaneous Expenses,5034,Upgrade to Iken Cedar and implementation of the Iken data cleansing tool,11/05/2018,129578,"5,250.00",Revenue,Iken Business Limited,22068
Chorley Borough Council,http://statistics.data.gov.uk/id/local-authority/30UE,Unapportionable Central OHeads,1009,Customer & Digital,Professional Fees,14011,Direct Employee Expenses,5001,annual membership to NAFN,23/05/2018,129738,"1,050.00",Revenue,iNetwork (Tameside Council),19554
Chorley Borough Council,http://statistics.data.gov.uk/id/local-authority/30UE,Other Short Term Creditors,,Policy & Governance,General Balances,100,Balance Sheet,Balance,income tax,18/05/2018,129756,"2,434.40",Revenue,Inland Revenue 065/CH1094A,77147
Chorley Borough Council,http://statistics.data.gov.uk/id/local-authority/30UE,Corporate Management,1008,Early Intervention,Professional Fees,14011,Direct Employee Expenses,5001,Annual Small Organisational Membership 6 places. Invoice 23768,04/05/2018,129416,300.00,Revenue,Institute Of Licensing,16987
Chorley Borough Council,http://statistics.data.gov.uk/id/local-authority/30UE,Central Support Services,1009,Early Intervention,Other Contributions,40145,Grants and Subscriptions,5031,Provision of Technical Survey of damp and mould problems at ADDRESS REDACTED,16/05/2018,129640,909.00,Revenue,Insulation-Consumer Action Network (I-CAN) Ltd,77297
Chorley Borough Council,http://statistics.data.gov.uk/id/local-authority/30UE,Unapportionable Central OHeads,1009,Business Development & Growth,General Repairs - Reactive,20004,Repairs Maintenance & Alts,5005,Reactive works across all sites,04/05/2018,129356,"1,449.50",Revenue,James Mercer,20194
Chorley Borough Council,http://statistics.data.gov.uk/id/local-authority/30UE,Service Management & Support,1009,Customer & Digital,Vehicles and Plant Operating Lease,30029,Contrct Hire & Operating Lease,5018,Lease from July 18 to July 19 for Nissan NV200 panel van PN15 YWB,16/05/2018,129521,"1,902.93",Revenue,Jcb Finance Ltd,17684
Chorley Borough Council,http://statistics.data.gov.uk/id/local-authority/30UE,Service Management & Support,1009,Customer & Digital,Vehicles and Plant Operating Lease,30029,Contrct Hire & Operating Lease,5018,Lease from July 18 to July 19 for Nissan NV200 panel van PO15 VHD,16/05/2018,129521,"1,902.93",Revenue,Jcb Finance Ltd,17684
Chorley Borough Council,http://statistics.data.gov.uk/id/local-authority/30UE,Service Management & Support,1009,Customer & Digital,Vehicles and Plant Operating Lease,30029,Contrct Hire & Operating Lease,5018,Lease from July 18 to July 19 for Nissan NV200 panel van PO15 VHE,16/05/2018,129521,"1,902.93",Revenue,Jcb Finance Ltd,17684
Chorley Borough Council,http://statistics.data.gov.uk/id/local-authority/30UE,Service Management & Support,1009,Customer & Digital,Vehicles and Plant Operating Lease,30029,Contrct Hire & Operating Lease,5018,Lease from July 18 to July 19 for Nissan NV200 panel van PO15 VFZ,16/05/2018,129521,"1,902.93",Revenue,Jcb Finance Ltd,17684
Chorley Borough Council,http://statistics.data.gov.uk/id/local-authority/30UE,Service Management & Support,1009,Customer & Digital,Vehicles and Plant Operating Lease,30029,Contrct Hire & Operating Lease,5018,Lease from July 18 to July 19 for Nissan NV200 panel van PO15 VHF,16/05/2018,129521,"1,902.92",Revenue,Jcb Finance Ltd,17684
Chorley Borough Council,http://statistics.data.gov.uk/id/local-authority/30UE,Service Management & Support,1009,Customer & Digital,Supplies-Grounds Maintenance,40025,"Equipment, Furniture & Materia",5023,20 lengths of 3`` timber for knee rail 60 birdmouth posts,09/05/2018,129420,405.00,Revenue,John H Mayor & Sons Ltd,16635
Chorley Borough Council,http://statistics.data.gov.uk/id/local-authority/30UE,Economic Development,1096,Business Development & Growth,Miscellaneous Expenses,40200,Miscellaneous Expenses,5034,"For business start-up support February, March, April 2018 5,200",02/05/2018,129334,"1,600.00",Revenue,NAME REDACTED,77195
Chorley Borough Council,http://statistics.data.gov.uk/id/local-authority/30UE,Parking Services,1066,Business Development & Growth,Statutory Notices,40160,Miscellaneous Expenses,5034,advert ref number: NMC2751711 Publication in Chorley Guardian Size (cm x columns) 14x3 Classification Public Notices Colour,04/05/2018,129412,367.08,Revenue,Johnston Publishing Ltd,20072
Chorley Borough Council,http://statistics.data.gov.uk/id/local-authority/30UE,Development Control,1091,Customer & Digital,Statutory Notices,40160,Miscellaneous Expenses,5034,Planning Public Notices to appear in the Chorley Guardian April 2018 to March 2019,11/05/2018,129533,314.64,Revenue,Johnston Publishing Ltd,20072
Chorley Borough Council,http://statistics.data.gov.uk/id/local-authority/30UE,Unapportionable Central OHeads,1009,Policy & Governance,HR Approved Training Expenses,17001,Indirect Employee Expenses,5002,Managing Emotional Resilience in the Workplace (4 sessions) May 2018,16/05/2018,129524,"3,580.00",Revenue,JW Training,64096
Chorley Borough Council,http://statistics.data.gov.uk/id/local-authority/30UE,Capital,Capital,Early Intervention,Grants,3002,Capital Expenditure,Capital,ADDRESS REDACTED,09/05/2018,129469,"3,615.00",Capital,K Berry Ltd,16421
Chorley Borough Council,http://statistics.data.gov.uk/id/local-authority/30UE,Capital,Capital,Early Intervention,Grants,3002,Capital Expenditure,Capital,ADDRESS REDACTED,09/05/2018,129478,"4,175.00",Capital,K Berry Ltd,16421
Chorley Borough Council,http://statistics.data.gov.uk/id/local-authority/30UE,Capital,Capital,Early Intervention,Grants,3002,Capital Expenditure,Capital,ADDRESS REDACTED,09/05/2018,129479,"3,252.00",Capital,K Berry Ltd,16421
Chorley Borough Council,http://statistics.data.gov.uk/id/local-authority/30UE,Capital,Capital,Early Intervention,Grants,3002,Capital Expenditure,Capital,ADDRESS REDACTED,09/05/2018,129480,"6,330.00",Capital,K Berry Ltd,16421
Chorley Borough Council,http://statistics.data.gov.uk/id/local-authority/30UE,Democratic Represent and  Mgnt,1007,Business Development & Growth,Playground Equipment,40008,"Equipment, Furniture & Materia",5023,Resurfacing of Clayton Brook MUGA to specification agreed.,04/05/2018,129337,"5,975.00",Revenue,K Darlington and Son,21930
Chorley Borough Council,http://statistics.data.gov.uk/id/local-authority/30UE,Unapportionable Central OHeads,1009,Policy & Governance,Legal Fees,40171,Miscellaneous Expenses,5034,Professional charges re settlement agreement AD,04/05/2018,129444,350.00,Revenue,Kevills Solicitors,18532
Chorley Borough Council,http://statistics.data.gov.uk/id/local-authority/30UE,Homelessness,1075,Early Intervention,External Contractor,40198,Miscellaneous Expenses,5034,PROVISION OF YOUNG PERSONS HOUSING DROP IN Q1 April 2018 - June 2018,02/05/2018,129316,"3,750.00",Revenue,Key,61252
Chorley Borough Council,http://statistics.data.gov.uk/id/local-authority/30UE,Service Management & Support,1009,Customer & Digital,Protective Clothing,40040,"Clothing, Uniforms and Laundry",5025,"Rodo Guardian Bump Boot, high leg safety boot.  Size = 7.  Product Code = GUARDIAN",09/05/2018,129453,27.23,Revenue,Key Engineering & Hygene Supplies,51615
Chorley Borough Council,http://statistics.data.gov.uk/id/local-authority/30UE,Service Management & Support,1009,Customer & Digital,Protective Clothing,40040,"Clothing, Uniforms and Laundry",5025,"Rodo Guardian Bump Boot, high leg safety boot.  Size = 8.  Product Code = GUARDIAN",09/05/2018,129453,81.69,Revenue,Key Engineering & Hygene Supplies,51615
Chorley Borough Council,http://statistics.data.gov.uk/id/local-authority/30UE,Service Management & Support,1009,Customer & Digital,Protective Clothing,40040,"Clothing, Uniforms and Laundry",5025,"Rodo Guardian Bump Boot, high leg safety boot.  Size = 9.  Product Code = GUARDIAN",09/05/2018,129453,81.69,Revenue,Key Engineering & Hygene Supplies,51615
Chorley Borough Council,http://statistics.data.gov.uk/id/local-authority/30UE,Service Management & Support,1009,Customer & Digital,Protective Clothing,40040,"Clothing, Uniforms and Laundry",5025,"Rodo Guardian Bump Boot, high leg safety boot.  Size = 10.  Product Code = GUARDIAN",09/05/2018,129453,54.46,Revenue,Key Engineering & Hygene Supplies,51615
Chorley Borough Council,http://statistics.data.gov.uk/id/local-authority/30UE,Service Management & Support,1009,Customer & Digital,Protective Clothing,40040,"Clothing, Uniforms and Laundry",5025,"Rodo Guardian Bump Boot, high leg safety boot.  Size = 11.  Product Code = GUARDIAN",09/05/2018,129453,27.23,Revenue,Key Engineering & Hygene Supplies,51615
Chorley Borough Council,http://statistics.data.gov.uk/id/local-authority/30UE,Service Management & Support,1009,Customer & Digital,Protective Clothing,40040,"Clothing, Uniforms and Laundry",5025,Beeswift BBEVSH lightweight safety helmet.  Product Code = BBEVSHW/BBVHCS,09/05/2018,129453,25.30,Revenue,Key Engineering & Hygene Supplies,51615
Chorley Borough Council,http://statistics.data.gov.uk/id/local-authority/30UE,Service Management & Support,1009,Customer & Digital,Protective Clothing,40040,"Clothing, Uniforms and Laundry",5025,Portwest PS33 safety spectacles.  Product Code = PS33,09/05/2018,129453,31.50,Revenue,Key Engineering & Hygene Supplies,51615
Chorley Borough Council,http://statistics.data.gov.uk/id/local-authority/30UE,Service Management & Support,1009,Customer & Digital,Protective Clothing,40040,"Clothing, Uniforms and Laundry",5025,srap,09/05/2018,129453,5.30,Revenue,Key Engineering & Hygene Supplies,51615
Chorley Borough Council,http://statistics.data.gov.uk/id/local-authority/30UE,Planning Policy,1092,Policy & Governance,Legal Fees,40171,Miscellaneous Expenses,5034,Counsel`s fees (Wilson Horne) regarding the particulars of claim and advise by email 02.05.18 relating to Arley Street,11/05/2018,129474,"1,125.00",Revenue,Kings Chambers Ltd,48008
Chorley Borough Council,http://statistics.data.gov.uk/id/local-authority/30UE,Control Accounts,Control,Policy & Governance,General Balances,100,Balance Sheet,Balance,mthly ded from expeses,18/05/2018,129726,"1,163.40",Revenue,Labour Councillors Association,17577
Chorley Borough Council,http://statistics.data.gov.uk/id/local-authority/30UE,Control Accounts,Control,Policy & Governance,General Balances,100,Balance Sheet,Balance,monthly deductions,25/05/2018,129895,"1,163.40",Revenue,Labour Councillors Association,17577
Chorley Borough Council,http://statistics.data.gov.uk/id/local-authority/30UE,Service Management & Support,1009,Customer & Digital,Training Course Fees,17010,Indirect Employee Expenses,5002,NPTC assessment hedge cutters,23/05/2018,128938,"1,164.00",Revenue,Lancashire Assessment Centre Limited,76796
Chorley Borough Council,http://statistics.data.gov.uk/id/local-authority/30UE,Service Management & Support,1009,Customer & Digital,Training Course Fees,17010,Indirect Employee Expenses,5002,NPTC assessment ride on mowers,23/05/2018,128938,582.00,Revenue,Lancashire Assessment Centre Limited,76796
Chorley Borough Council,http://statistics.data.gov.uk/id/local-authority/30UE,Service Management & Support,1009,Customer & Digital,Training Course Fees,17010,Indirect Employee Expenses,5002,NPTC assessment Pedestrian mowers,23/05/2018,128938,582.00,Revenue,Lancashire Assessment Centre Limited,76796
Chorley Borough Council,http://statistics.data.gov.uk/id/local-authority/30UE,Service Management & Support,1009,Customer & Digital,Training Course Fees,17010,Indirect Employee Expenses,5002,NPTC assessment - brush cutters/ strimmers,23/05/2018,128938,582.00,Revenue,Lancashire Assessment Centre Limited,76796
Chorley Borough Council,http://statistics.data.gov.uk/id/local-authority/30UE,Corporate Management,1008,Policy & Governance,Other Contributions,40145,Grants and Subscriptions,5031,Payment for shared service between LCC and CBC for extended period,04/05/2018,128548,"8,346.77",Revenue,Lancashire County Council,17758
Chorley Borough Council,http://statistics.data.gov.uk/id/local-authority/30UE,Corporate Management,1008,Policy & Governance,Other Contributions,40145,Grants and Subscriptions,5031,For the 24A/109A/6A service an additional amount is required,04/05/2018,128548,"30,000.00",Revenue,Lancashire County Council,17758
Chorley Borough Council,http://statistics.data.gov.uk/id/local-authority/30UE,Unapportionable Central OHeads,1009,Policy & Governance,Exhibitions & Special Events,40158,Miscellaneous Expenses,5034,grand prix,02/05/2018,129128,890.36,Revenue,Lancashire County Council,17758
Chorley Borough Council,http://statistics.data.gov.uk/id/local-authority/30UE,Capital,Capital,Early Intervention,Grants,3002,Capital Expenditure,Capital,DFG ADDRESS REDACTED,02/05/2018,129227,"3,236.46",Capital,Lancashire County Council,17758
Chorley Borough Council,http://statistics.data.gov.uk/id/local-authority/30UE,Service Management & Support,1009,Customer & Digital,Training Course Fees,17010,Indirect Employee Expenses,5002,"provide and supply a Customer Service and Regulatory Compliance Driver CPC Course for Chorley Council Staff, at the agreed ",09/05/2018,129505,600.00,Revenue,Lancashire County Council,17758
Chorley Borough Council,http://statistics.data.gov.uk/id/local-authority/30UE,Corporate Management,1008,Customer & Digital,Clinical Waste Collection,50007,Private Contractors,5042,"Disposal of clinical waste from Chorley   household. April 2017 to March 2018.   Yellow bag collections, approx. 550 per   month",25/05/2018,129843,"1,885.18",Revenue,Lancashire Teaching Hospitals NHS FT,19003
Chorley Borough Council,http://statistics.data.gov.uk/id/local-authority/30UE,Capital,Capital,Business Development & Growth,Main Contractor,3007,Capital Expenditure,Capital,"Landscape Works at Coronation Recreation Ground.  Refurbishment of gates and railings, refurbishment of single tennis court,",25/05/2018,129840,"9,612.29",Capital,Landscape Engineering Ltd,54727
Chorley Borough Council,http://statistics.data.gov.uk/id/local-authority/30UE,Central Support Services,1009,Policy & Governance,Car Leasing Payment,14100,Direct Employee Expenses,5001,NAME REDACTED,04/05/2018,129125,"2,862.68",Revenue,LeasePlan UK Ltd T/A Automotive Leasing,65197
Chorley Borough Council,http://statistics.data.gov.uk/id/local-authority/30UE,Central Support Services,1009,Policy & Governance,Car Leasing Payment,14100,Direct Employee Expenses,5001,Car Lease,04/05/2018,129125,250.87,Revenue,LeasePlan UK Ltd T/A Automotive Leasing,65197
Chorley Borough Council,http://statistics.data.gov.uk/id/local-authority/30UE,Control Accounts,Control,Policy & Governance,Manual Control Account,1,Balance Sheet,Balance,Balance Sheet,04/05/2018,129125,-250.87,Revenue,LeasePlan UK Ltd T/A Automotive Leasing,65197
Chorley Borough Council,http://statistics.data.gov.uk/id/local-authority/30UE,Central Support Services,1009,Policy & Governance,Car Leasing Payment,14100,Direct Employee Expenses,5001,NAME REDACTED,04/05/2018,129126,"2,903.11",Revenue,LeasePlan UK Ltd T/A Automotive Leasing,65197
Chorley Borough Council,http://statistics.data.gov.uk/id/local-authority/30UE,Central Support Services,1009,Policy & Governance,Car Leasing Payment,14100,Direct Employee Expenses,5001,Car Lease,04/05/2018,129126,249.75,Revenue,LeasePlan UK Ltd T/A Automotive Leasing,65197
Chorley Borough Council,http://statistics.data.gov.uk/id/local-authority/30UE,Control Accounts,Control,Policy & Governance,Manual Control Account,1,Balance Sheet,Balance,Balance Sheet,04/05/2018,129126,-249.75,Revenue,LeasePlan UK Ltd T/A Automotive Leasing,65197
Chorley Borough Council,http://statistics.data.gov.uk/id/local-authority/30UE,Central Support Services,1009,Policy & Governance,Car Leasing Payment,14100,Direct Employee Expenses,5001,NAME REDACTED,04/05/2018,129127,"2,859.08",Revenue,LeasePlan UK Ltd T/A Automotive Leasing,65197
Chorley Borough Council,http://statistics.data.gov.uk/id/local-authority/30UE,Central Support Services,1009,Policy & Governance,Car Leasing Payment,14100,Direct Employee Expenses,5001,Car Lease,04/05/2018,129127,257.74,Revenue,LeasePlan UK Ltd T/A Automotive Leasing,65197
Chorley Borough Council,http://statistics.data.gov.uk/id/local-authority/30UE,Control Accounts,Control,Policy & Governance,Manual Control Account,1,Balance Sheet,Balance,Balance Sheet,04/05/2018,129127,-257.74,Revenue,LeasePlan UK Ltd T/A Automotive Leasing,65197
Chorley Borough Council,http://statistics.data.gov.uk/id/local-authority/30UE,Other Short Term Debtors,,Policy & Governance,General Balances,100,Balance Sheet,Balance,Home Tech goods supplied - Invoice No PRSINV00788 dated 05/01/18,04/05/2018,129414,"5,246.10",Revenue,Lets Connect Limited,68086
Chorley Borough Council,http://statistics.data.gov.uk/id/local-authority/30UE,Unapportionable Central OHeads,1009,Customer & Digital,Professional Fees,14011,Direct Employee Expenses,5001,Capacity Grid Empty Home Review 2018,30/05/2018,128919,"13,117.35",Revenue,Liberata (Capacity Grid),67989
Chorley Borough Council,http://statistics.data.gov.uk/id/local-authority/30UE,Tourism,1039,Policy & Governance,Publicity - Advertising,40157,Miscellaneous Expenses,5034,Chorley Flower Show editorial,09/05/2018,129473,500.00,Revenue,Loop Publishing Ltd,18770
Chorley Borough Council,http://statistics.data.gov.uk/id/local-authority/30UE,Unapportionable Central OHeads,1009,Policy & Governance,Stationery,40050,"Printing, Stationery & General",5026,C5 white envelope,09/05/2018,129461,12.88,Revenue,Lyreco UK Ltd,17623
Chorley Borough Council,http://statistics.data.gov.uk/id/local-authority/30UE,Unapportionable Central OHeads,1009,Policy & Governance,Stationery,40050,"Printing, Stationery & General",5026,LYRECO WHITE C5 SELF SEAL WINDOW ENVELOPES 90GSM - BOX OF 500,09/05/2018,129461,40.10,Revenue,Lyreco UK Ltd,17623
Chorley Borough Council,http://statistics.data.gov.uk/id/local-authority/30UE,Unapportionable Central OHeads,1009,Policy & Governance,Stationery,40050,"Printing, Stationery & General",5026,Lyreco White C4 Self Seal Plain Envelopes 100Gsm - Box Of 250,09/05/2018,129461,5.90,Revenue,Lyreco UK Ltd,17623
Chorley Borough Council,http://statistics.data.gov.uk/id/local-authority/30UE,Unapportionable Central OHeads,1009,Policy & Governance,Stationery,40050,"Printing, Stationery & General",5026,Lyreco White C4 Self Seal Window Envelopes 100Gsm - Box Of 250,09/05/2018,129461,6.12,Revenue,Lyreco UK Ltd,17623
Chorley Borough Council,http://statistics.data.gov.uk/id/local-authority/30UE,Unapportionable Central OHeads,1009,Policy & Governance,Stationery,40050,"Printing, Stationery & General",5026,Black Toner Cartridge for Lexmark T650 printer,09/05/2018,129461,343.42,Revenue,Lyreco UK Ltd,17623
Chorley Borough Council,http://statistics.data.gov.uk/id/local-authority/30UE,Unapportionable Central OHeads,1009,Policy & Governance,Stationery,40050,"Printing, Stationery & General",5026,hp337 Black Original Ink Cartridge,09/05/2018,129461,40.58,Revenue,Lyreco UK Ltd,17623
Chorley Borough Council,http://statistics.data.gov.uk/id/local-authority/30UE,Unapportionable Central OHeads,1009,Policy & Governance,Stationery,40050,"Printing, Stationery & General",5026,Lyreco Crepe Masking Tape - 25Mm X 50M Roll,09/05/2018,129461,3.00,Revenue,Lyreco UK Ltd,17623
Chorley Borough Council,http://statistics.data.gov.uk/id/local-authority/30UE,Unapportionable Central OHeads,1009,Policy & Governance,Stationery,40050,"Printing, Stationery & General",5026,Sellotape (pack of 6),09/05/2018,129461,1.26,Revenue,Lyreco UK Ltd,17623
Chorley Borough Council,http://statistics.data.gov.uk/id/local-authority/30UE,Unapportionable Central OHeads,1009,Policy & Governance,Stationery,40050,"Printing, Stationery & General",5026,Micron Stick Ball Point,09/05/2018,129461,3.00,Revenue,Lyreco UK Ltd,17623
Chorley Borough Council,http://statistics.data.gov.uk/id/local-authority/30UE,Unapportionable Central OHeads,1009,Policy & Governance,Stationery,40050,"Printing, Stationery & General",5026,A4 clear punched pockets,09/05/2018,129461,5.96,Revenue,Lyreco UK Ltd,17623
Chorley Borough Council,http://statistics.data.gov.uk/id/local-authority/30UE,Unapportionable Central OHeads,1009,Policy & Governance,Stationery,40050,"Printing, Stationery & General",5026,Uhu White Tack - 60G Pack,09/05/2018,129461,3.04,Revenue,Lyreco UK Ltd,17623
Chorley Borough Council,http://statistics.data.gov.uk/id/local-authority/30UE,Unapportionable Central OHeads,1009,Policy & Governance,Stationery,40050,"Printing, Stationery & General",5026,Lyreco Premium Scissors,09/05/2018,129461,7.40,Revenue,Lyreco UK Ltd,17623
Chorley Borough Council,http://statistics.data.gov.uk/id/local-authority/30UE,Democratic Represent and  Mgnt,1007,Business Development & Growth,External Contractor,40198,Miscellaneous Expenses,5034,Removal of silver birch with large cavity from Moor Road allotments,18/05/2018,129769,250.00,Revenue,M J Walker,62044
Chorley Borough Council,http://statistics.data.gov.uk/id/local-authority/30UE,Democratic Represent and  Mgnt,1007,Business Development & Growth,Maintenance/Nature Reserves,20045,Grounds Maintenance Costs,5013,2 days tree work at Withnell Local Nature Reserve with a 3 man team.,23/05/2018,129782,700.00,Revenue,M J Walker,62044
Chorley Borough Council,http://statistics.data.gov.uk/id/local-authority/30UE,Central Support Services,1009,Early Intervention,Miscellaneous Expenses,40200,Miscellaneous Expenses,5034,INVOICE NUMBER 073 To provision of Domestic Homicide Chair functions in relation to the DHR in case of �NAME REDACTED� ,30/05/2018,129926,"3,825.00",Revenue,M.A.Noble,66411
Chorley Borough Council,http://statistics.data.gov.uk/id/local-authority/30UE,Capital,Capital,Early Intervention,Grants,3002,Capital Expenditure,Capital,,02/05/2018,129277,"3,646.00",Capital,M.J Park Building Contractors,20367
Chorley Borough Council,http://statistics.data.gov.uk/id/local-authority/30UE,Capital,Capital,Early Intervention,Grants,3002,Capital Expenditure,Capital,ADDRESS REDACTED,16/05/2018,129633,"4,955.00",Capital,M.J Park Building Contractors,20367
Chorley Borough Council,http://statistics.data.gov.uk/id/local-authority/30UE,Business Support,1095,Business Development & Growth,Grants To Other Organisations,40127,Grants and Subscriptions,5031,starting in business grant,30/05/2018,129856,250.00,Revenue,NAME REDACTED,77206
Chorley Borough Council,http://statistics.data.gov.uk/id/local-authority/30UE,Building Control,1090,Policy & Governance,Operational Employees Salaries,10000,Direct Employee Expenses,5001,Invoice for NAME REDACTED for w/c 26/03/18 - Invoice No 2988697,02/05/2018,129297,964.06,Revenue,Matchtech,77343
Chorley Borough Council,http://statistics.data.gov.uk/id/local-authority/30UE,Building Control,1090,Policy & Governance,Operational Employees Salaries,10000,Direct Employee Expenses,5001,Invoice for NAME REDACTED w/c 02/04/18 - Invoice No 2989996,02/05/2018,129298,"1,102.00",Revenue,Matchtech,77343
Chorley Borough Council,http://statistics.data.gov.uk/id/local-authority/30UE,Building Control,1090,Policy & Governance,Operational Employees Salaries,10000,Direct Employee Expenses,5001,Invoice for NAME REDACTED - w/c 16/04/18 - Invoice No 2999183,02/05/2018,129309,"1,377.50",Revenue,Matchtech,77343
Chorley Borough Council,http://statistics.data.gov.uk/id/local-authority/30UE,Building Control,1090,Policy & Governance,Operational Employees Salaries,10000,Direct Employee Expenses,5001,Invoice for NAME REDACTED w/c 09/04/18 - Invoice No 2994094,02/05/2018,129310,"1,377.50",Revenue,Matchtech,77343
Chorley Borough Council,http://statistics.data.gov.uk/id/local-authority/30UE,Building Control,1090,Policy & Governance,Operational Employees Salaries,10000,Direct Employee Expenses,5001,Fees for NAME REDACTED for w/c 23/04/18 - Invoice No 3001381,04/05/2018,129415,"1,377.50",Revenue,Matchtech,77343
Chorley Borough Council,http://statistics.data.gov.uk/id/local-authority/30UE,Building Control,1090,Policy & Governance,Operational Employees Salaries,10000,Direct Employee Expenses,5001,Fees for NAME REDACTED for w/c 30/04/18,11/05/2018,129574,"1,377.50",Revenue,Matchtech,77343
Chorley Borough Council,http://statistics.data.gov.uk/id/local-authority/30UE,Central Support Services,1009,Policy & Governance,Agency Staff,13000,Direct Employee Expenses,5001,AGENCY STAFF COST,04/05/2018,129278,654.00,Revenue,Matrix SCM Ltd,22128
Chorley Borough Council,http://statistics.data.gov.uk/id/local-authority/30UE,Unapportionable Central OHeads,1009,Policy & Governance,Agency Staff,13000,Direct Employee Expenses,5001,AGENCY STAFF COST,04/05/2018,129278,525.06,Revenue,Matrix SCM Ltd,22128
Chorley Borough Council,http://statistics.data.gov.uk/id/local-authority/30UE,Central Support Services,1009,Policy & Governance,Agency Staff,13000,Direct Employee Expenses,5001,AGENCY STAFF COST,04/05/2018,129278,641.40,Revenue,Matrix SCM Ltd,22128
Chorley Borough Council,http://statistics.data.gov.uk/id/local-authority/30UE,Central Support Services,1009,Policy & Governance,Agency Staff,13000,Direct Employee Expenses,5001,AGENCY STAFF COST,23/05/2018,129735,654.00,Revenue,Matrix SCM Ltd,22128
Chorley Borough Council,http://statistics.data.gov.uk/id/local-authority/30UE,Central Support Services,1009,Policy & Governance,Agency Staff,13000,Direct Employee Expenses,5001,AGENCY STAFF COST,23/05/2018,129735,641.40,Revenue,Matrix SCM Ltd,22128
Chorley Borough Council,http://statistics.data.gov.uk/id/local-authority/30UE,Unapportionable Central OHeads,1009,Business Development & Growth,Planned Maintenance,20006,Repairs Maintenance & Alts,5005,Annual Purchase order for water monitoring,16/05/2018,129575,"1,803.75",Revenue,Maxigiene Environmental Services Ltd,67160
Chorley Borough Council,http://statistics.data.gov.uk/id/local-authority/30UE,Democratic Represent and  Mgnt,1007,Business Development & Growth,External Contractor,40198,Miscellaneous Expenses,5034,"20 tonne load of Ultritrec 20mm to dust. Delivery to Crosse Hall Allotments, Crosse Hall Lane, Chorley, PR6 9AW",18/05/2018,129688,420.89,Revenue,Mc & Ma Stewart (Haulage Ltd),16627
Chorley Borough Council,http://statistics.data.gov.uk/id/local-authority/30UE,Democratic Represent and  Mgnt,1007,Business Development & Growth,External Contractor,40198,Miscellaneous Expenses,5034,18.4 tonns extra del against po51659,18/05/2018,129693,391.92,Revenue,Mc & Ma Stewart (Haulage Ltd),16627
Chorley Borough Council,http://statistics.data.gov.uk/id/local-authority/30UE,Democratic Represent and  Mgnt,1007,Policy & Governance,Conservation Of Exhibits,40059,Services,5027,Renewal of wireless monitoring service plan. 2018/2019 810 plus vat,23/05/2018,129203,810.00,Revenue,Meaco Measurement & Control Ltd,16527
Chorley Borough Council,http://statistics.data.gov.uk/id/local-authority/30UE,Unapportionable Central OHeads,1009,Policy & Governance,Miscellaneous Expenses,40200,Miscellaneous Expenses,5034,Medical Provision,02/05/2018,129339,600.00,Revenue,Mersey Medical Services Ltd,76577
Chorley Borough Council,http://statistics.data.gov.uk/id/local-authority/30UE,Capital,Capital,Early Intervention,Grants,3002,Capital Expenditure,Capital,ADDRESS REDACTED,09/05/2018,129470,"4,131.60",Capital,Mint Northwest Ltd,65607
Chorley Borough Council,http://statistics.data.gov.uk/id/local-authority/30UE,Capital,Capital,Early Intervention,Grants,3002,Capital Expenditure,Capital,ADDRESS REDACTED,16/05/2018,129634,"4,897.97",Capital,Mint Northwest Ltd,65607
Chorley Borough Council,http://statistics.data.gov.uk/id/local-authority/30UE,Capital,Capital,Early Intervention,Grants,3002,Capital Expenditure,Capital,,25/05/2018,129912,"4,813.95",Capital,Mint Northwest Ltd,65607
Chorley Borough Council,http://statistics.data.gov.uk/id/local-authority/30UE,Private Sector HSG Renewal,1073,Early Intervention,External Contractor,40198,Miscellaneous Expenses,5034,24657,16/05/2018,129576,360.00,Revenue,Mobility Care Services,70841
Chorley Borough Council,http://statistics.data.gov.uk/id/local-authority/30UE,Private Sector HSG Renewal,1073,Early Intervention,External Contractor,40198,Miscellaneous Expenses,5034,24658,16/05/2018,129576,80.00,Revenue,Mobility Care Services,70841
Chorley Borough Council,http://statistics.data.gov.uk/id/local-authority/30UE,Private Sector HSG Renewal,1073,Early Intervention,External Contractor,40198,Miscellaneous Expenses,5034,24661,16/05/2018,129576,40.00,Revenue,Mobility Care Services,70841
Chorley Borough Council,http://statistics.data.gov.uk/id/local-authority/30UE,Private Sector HSG Renewal,1073,Early Intervention,External Contractor,40198,Miscellaneous Expenses,5034,24664,16/05/2018,129576,64.00,Revenue,Mobility Care Services,70841
Chorley Borough Council,http://statistics.data.gov.uk/id/local-authority/30UE,Private Sector HSG Renewal,1073,Early Intervention,External Contractor,40198,Miscellaneous Expenses,5034,24670,16/05/2018,129576,250.00,Revenue,Mobility Care Services,70841
Chorley Borough Council,http://statistics.data.gov.uk/id/local-authority/30UE,Private Sector HSG Renewal,1073,Early Intervention,External Contractor,40198,Miscellaneous Expenses,5034,24614,16/05/2018,129576,125.00,Revenue,Mobility Care Services,70841
Chorley Borough Council,http://statistics.data.gov.uk/id/local-authority/30UE,Private Sector HSG Renewal,1073,Early Intervention,External Contractor,40198,Miscellaneous Expenses,5034,24672,16/05/2018,129576,125.00,Revenue,Mobility Care Services,70841
Chorley Borough Council,http://statistics.data.gov.uk/id/local-authority/30UE,Private Sector HSG Renewal,1073,Early Intervention,External Contractor,40198,Miscellaneous Expenses,5034,24683,16/05/2018,129576,84.00,Revenue,Mobility Care Services,70841
Chorley Borough Council,http://statistics.data.gov.uk/id/local-authority/30UE,Private Sector HSG Renewal,1073,Early Intervention,External Contractor,40198,Miscellaneous Expenses,5034,24684,16/05/2018,129576,216.00,Revenue,Mobility Care Services,70841
Chorley Borough Council,http://statistics.data.gov.uk/id/local-authority/30UE,Private Sector HSG Renewal,1073,Early Intervention,External Contractor,40198,Miscellaneous Expenses,5034,24685,16/05/2018,129576,108.00,Revenue,Mobility Care Services,70841
Chorley Borough Council,http://statistics.data.gov.uk/id/local-authority/30UE,Private Sector HSG Renewal,1073,Early Intervention,External Contractor,40198,Miscellaneous Expenses,5034,24686,16/05/2018,129576,108.00,Revenue,Mobility Care Services,70841
Chorley Borough Council,http://statistics.data.gov.uk/id/local-authority/30UE,Private Sector HSG Renewal,1073,Early Intervention,External Contractor,40198,Miscellaneous Expenses,5034,24688,16/05/2018,129576,64.00,Revenue,Mobility Care Services,70841
Chorley Borough Council,http://statistics.data.gov.uk/id/local-authority/30UE,Private Sector HSG Renewal,1073,Early Intervention,External Contractor,40198,Miscellaneous Expenses,5034,24690,16/05/2018,129576,64.00,Revenue,Mobility Care Services,70841
Chorley Borough Council,http://statistics.data.gov.uk/id/local-authority/30UE,Private Sector HSG Renewal,1073,Early Intervention,External Contractor,40198,Miscellaneous Expenses,5034,24692,16/05/2018,129576,66.00,Revenue,Mobility Care Services,70841
Chorley Borough Council,http://statistics.data.gov.uk/id/local-authority/30UE,Private Sector HSG Renewal,1073,Early Intervention,External Contractor,40198,Miscellaneous Expenses,5034,24693,16/05/2018,129576,66.00,Revenue,Mobility Care Services,70841
Chorley Borough Council,http://statistics.data.gov.uk/id/local-authority/30UE,Private Sector HSG Renewal,1073,Early Intervention,External Contractor,40198,Miscellaneous Expenses,5034,24707,16/05/2018,129576,66.00,Revenue,Mobility Care Services,70841
Chorley Borough Council,http://statistics.data.gov.uk/id/local-authority/30UE,Private Sector HSG Renewal,1073,Early Intervention,External Contractor,40198,Miscellaneous Expenses,5034,24708,16/05/2018,129576,66.00,Revenue,Mobility Care Services,70841
Chorley Borough Council,http://statistics.data.gov.uk/id/local-authority/30UE,Private Sector HSG Renewal,1073,Early Intervention,External Contractor,40198,Miscellaneous Expenses,5034,24709,16/05/2018,129576,66.00,Revenue,Mobility Care Services,70841
Chorley Borough Council,http://statistics.data.gov.uk/id/local-authority/30UE,Private Sector HSG Renewal,1073,Early Intervention,External Contractor,40198,Miscellaneous Expenses,5034,24710,16/05/2018,129576,66.00,Revenue,Mobility Care Services,70841
Chorley Borough Council,http://statistics.data.gov.uk/id/local-authority/30UE,Unapportionable Central OHeads,1009,Policy & Governance,Other Licence Fees,40231,Miscellaneous Expenses,5034,The MPLC Umbrella Licence Certificate  Expires 12-June-2019 Amount before VAT,18/05/2018,129764,"3,265.78",Revenue,Motion Picture Licensing Company Limited,65600
Chorley Borough Council,http://statistics.data.gov.uk/id/local-authority/30UE,Corporate Management,1008,Customer & Digital,Other Contributions,40145,Grants and Subscriptions,5031,ADDRESS REDACTED,04/05/2018,129312,"5,000.00",Revenue,NAME REDACTED,73758
Chorley Borough Council,http://statistics.data.gov.uk/id/local-authority/30UE,Service Management & Support,1009,Customer & Digital,External Contractor,40198,Miscellaneous Expenses,5034,Scrape and roll Euxton skate park car park Dig and backfill a grave plot at Chorley Cemetery,09/05/2018,129292,620.00,Revenue,Mr Stephen Scambler,16710
Chorley Borough Council,http://statistics.data.gov.uk/id/local-authority/30UE,Service Management & Support,1009,Customer & Digital,Leasing of Plant,40002,"Equipment, Furniture & Materia",5023,Hire of a mini digger for Cemetery team,18/05/2018,129646,590.00,Revenue,Mr Stephen Scambler,16710
Chorley Borough Council,http://statistics.data.gov.uk/id/local-authority/30UE,Service Management & Support,1009,Customer & Digital,Grounds Maintenance Contractor,20043,Grounds Maintenance Costs,5013,"for reinstatement works on the open space to the rear of Princess Way, Euxton",16/05/2018,129692,280.00,Revenue,Mr Stephen Scambler,16710
Chorley Borough Council,http://statistics.data.gov.uk/id/local-authority/30UE,Service Management & Support,1009,Customer & Digital,Training Course Fees,17010,Indirect Employee Expenses,5002,"NPTC training as discussed with Steve Slater and outlined below; 1 day for 12 candidates, NPTC Theory Brushcutters/Trimmers",23/05/2018,129770,"1,900.00",Revenue,Myerscough College,18214
Chorley Borough Council,http://statistics.data.gov.uk/id/local-authority/30UE,Service Management & Support,1009,Customer & Digital,Training Course Fees,17010,Indirect Employee Expenses,5002,As agreed with NAME REDACTED; Tractor and flail training - to take place 03/05/18,23/05/2018,129819,450.00,Revenue,Myerscough College,18214
Chorley Borough Council,http://statistics.data.gov.uk/id/local-authority/30UE,Unapportionable Central OHeads,1009,Chief Executive,Postages,40082,Communication and Computing,5028,Credit for Franking Machine at Town Hall offices,16/05/2018,129577,500.00,Revenue,Neopost Ltd RCB Credifon A/C,20009
Chorley Borough Council,http://statistics.data.gov.uk/id/local-authority/30UE,Corporate Management,1008,Customer & Digital,"Hackney Badges, Plates Etc.",40023,"Equipment, Furniture & Materia",5023,Private Hire door signs to include tamper evident hologram and cover  x 60 @6.88 each,04/05/2018,129432,427.70,Revenue,NewAuto Ltd t/a MOGO UK,17187
Chorley Borough Council,http://statistics.data.gov.uk/id/local-authority/30UE,Tourism,1039,Policy & Governance,Publicity - Advertising,40157,Miscellaneous Expenses,5034,Digital Advertising for Chorley Flower Show,09/05/2018,129515,267.74,Revenue,Newsquest (Lancashire) Limited,18117
Chorley Borough Council,http://statistics.data.gov.uk/id/local-authority/30UE,Unapportionable Central OHeads,1009,Policy & Governance,Miscellaneous Expenses,40200,Miscellaneous Expenses,5034,Portable toilet hire,25/05/2018,129868,535.00,Revenue,Northwest Portables,74432
Chorley Borough Council,http://statistics.data.gov.uk/id/local-authority/30UE,Democratic Represent and  Mgnt,1007,Business Development & Growth,Electricity,20013,Energy Costs,5006,harpers rec,02/05/2018,129052,20.65,Revenue,Npower Commercial Gas,16814
Chorley Borough Council,http://statistics.data.gov.uk/id/local-authority/30UE,Democratic Represent and  Mgnt,1007,Business Development & Growth,Electricity,20013,Energy Costs,5006,tatton rec,02/05/2018,129052,50.34,Revenue,Npower Commercial Gas,16814
Chorley Borough Council,http://statistics.data.gov.uk/id/local-authority/30UE,Service Management & Support,1009,Business Development & Growth,Electricity,20013,Energy Costs,5006,gillet,02/05/2018,129052,23.96,Revenue,Npower Commercial Gas,16814
Chorley Borough Council,http://statistics.data.gov.uk/id/local-authority/30UE,Democratic Represent and  Mgnt,1007,Business Development & Growth,Electricity,20013,Energy Costs,5006,king george,02/05/2018,129052,3.25,Revenue,Npower Commercial Gas,16814
Chorley Borough Council,http://statistics.data.gov.uk/id/local-authority/30UE,Democratic Represent and  Mgnt,1007,Business Development & Growth,Electricity,20013,Energy Costs,5006,astley farmhouse,02/05/2018,129052,91.93,Revenue,Npower Commercial Gas,16814
Chorley Borough Council,http://statistics.data.gov.uk/id/local-authority/30UE,Democratic Represent and  Mgnt,1007,Business Development & Growth,Electricity,20013,Energy Costs,5006,astly ehall,02/05/2018,129052,75.60,Revenue,Npower Commercial Gas,16814
Chorley Borough Council,http://statistics.data.gov.uk/id/local-authority/30UE,Democratic Represent and  Mgnt,1007,Business Development & Growth,Electricity,20013,Energy Costs,5006,eaves green cc,02/05/2018,129052,140.14,Revenue,Npower Commercial Gas,16814
Chorley Borough Council,http://statistics.data.gov.uk/id/local-authority/30UE,Community Development,1097,Business Development & Growth,Electricity,20013,Energy Costs,5006,35-39 market st,02/05/2018,129052,190.92,Revenue,Npower Commercial Gas,16814
Chorley Borough Council,http://statistics.data.gov.uk/id/local-authority/30UE,Community Development,1097,Business Development & Growth,Electricity,20013,Energy Costs,5006,35-39 market st,02/05/2018,129052,39.72,Revenue,Npower Commercial Gas,16814
Chorley Borough Council,http://statistics.data.gov.uk/id/local-authority/30UE,Community Development,1097,Business Development & Growth,Electricity,20013,Energy Costs,5006,35-39 market st,02/05/2018,129052,113.25,Revenue,Npower Commercial Gas,16814
Chorley Borough Council,http://statistics.data.gov.uk/id/local-authority/30UE,Democratic Represent and  Mgnt,1007,Business Development & Growth,Electricity,20013,Energy Costs,5006,cornoation rec,02/05/2018,129052,19.71,Revenue,Npower Commercial Gas,16814
Chorley Borough Council,http://statistics.data.gov.uk/id/local-authority/30UE,Democratic Represent and  Mgnt,1007,Business Development & Growth,Electricity,20013,Energy Costs,5006,astley vill cc,02/05/2018,129052,111.01,Revenue,Npower Commercial Gas,16814
Chorley Borough Council,http://statistics.data.gov.uk/id/local-authority/30UE,Democratic Represent and  Mgnt,1007,Business Development & Growth,Electricity,20013,Energy Costs,5006,astley coach house,02/05/2018,129052,996.62,Revenue,Npower Commercial Gas,16814
Chorley Borough Council,http://statistics.data.gov.uk/id/local-authority/30UE,Democratic Represent and  Mgnt,1007,Business Development & Growth,Electricity,20013,Energy Costs,5006,astley hall cottage,02/05/2018,129052,74.98,Revenue,Npower Commercial Gas,16814
Chorley Borough Council,http://statistics.data.gov.uk/id/local-authority/30UE,Corporate Management,1008,Business Development & Growth,Electricity,20013,Energy Costs,5006,cemetries office,02/05/2018,129052,87.67,Revenue,Npower Commercial Gas,16814
Chorley Borough Council,http://statistics.data.gov.uk/id/local-authority/30UE,Democratic Represent and  Mgnt,1007,Business Development & Growth,Electricity,20013,Energy Costs,5006,astley park,02/05/2018,129052,458.81,Revenue,Npower Commercial Gas,16814
Chorley Borough Council,http://statistics.data.gov.uk/id/local-authority/30UE,Economic Development,1096,Business Development & Growth,Electricity,20013,Energy Costs,5006,market compactor,02/05/2018,129052,87.41,Revenue,Npower Commercial Gas,16814
Chorley Borough Council,http://statistics.data.gov.uk/id/local-authority/30UE,Democratic Represent and  Mgnt,1007,Business Development & Growth,Electricity,20013,Energy Costs,5006,king georeg,02/05/2018,129052,16.24,Revenue,Npower Commercial Gas,16814
Chorley Borough Council,http://statistics.data.gov.uk/id/local-authority/30UE,Economic Development,1096,Business Development & Growth,Electricity,20013,Energy Costs,5006,portacabin,02/05/2018,129052,49.94,Revenue,Npower Commercial Gas,16814
Chorley Borough Council,http://statistics.data.gov.uk/id/local-authority/30UE,Homelessness,1075,Business Development & Growth,Electricity,20013,Energy Costs,5006,cotswld house,02/05/2018,129052,482.14,Revenue,Npower Commercial Gas,16814
Chorley Borough Council,http://statistics.data.gov.uk/id/local-authority/30UE,Homelessness,1075,Business Development & Growth,Electricity,20013,Energy Costs,5006,cotsolwhd house,02/05/2018,129052,209.02,Revenue,Npower Commercial Gas,16814
Chorley Borough Council,http://statistics.data.gov.uk/id/local-authority/30UE,Homelessness,1075,Business Development & Growth,Electricity,20013,Energy Costs,5006,cotowls house,02/05/2018,129052,79.59,Revenue,Npower Commercial Gas,16814
Chorley Borough Council,http://statistics.data.gov.uk/id/local-authority/30UE,Economic Development,1096,Business Development & Growth,Electricity,20013,Energy Costs,5006,landlord area,02/05/2018,129052,"3,993.54",Revenue,Npower Commercial Gas,16814
Chorley Borough Council,http://statistics.data.gov.uk/id/local-authority/30UE,Recreation & Sport,1037,Business Development & Growth,Electricity,20013,Energy Costs,5006,buttermere,02/05/2018,129052,88.00,Revenue,Npower Commercial Gas,16814
Chorley Borough Council,http://statistics.data.gov.uk/id/local-authority/30UE,Recreation & Sport,1037,Business Development & Growth,Electricity,20013,Energy Costs,5006,buckshaw cc,02/05/2018,129052,111.09,Revenue,Npower Commercial Gas,16814
Chorley Borough Council,http://statistics.data.gov.uk/id/local-authority/30UE,Democratic Represent and  Mgnt,1007,Business Development & Growth,Electricity,20013,Energy Costs,5006,rangletts,02/05/2018,129052,15.20,Revenue,Npower Commercial Gas,16814
Chorley Borough Council,http://statistics.data.gov.uk/id/local-authority/30UE,Unapportionable Central OHeads,1009,Business Development & Growth,Electricity,20013,Energy Costs,5006,town hall,02/05/2018,129085,"1,400.00",Revenue,Npower Commercial Gas,16814
Chorley Borough Council,http://statistics.data.gov.uk/id/local-authority/30UE,Parking Services,1066,Business Development & Growth,External Contractors,50008,Private Contractors,5042,"Provision of off street car park enforcement, cash collection, cash counting facilities and third party bulk cash collections April 18 ",04/05/2018,129411,"4,278.03",Revenue,NSL Limited,67253
Chorley Borough Council,http://statistics.data.gov.uk/id/local-authority/30UE,Central Support Services,1009,Customer & Digital,Computer - Support Services,40111,Communication and Computing,5028,"Nviron Consultancy Pack, Pre Purchased Days Pack for DR Plan and Efficiency Drive Call off use. T & M Basis.",16/05/2018,127884,"9,900.00",Revenue,Nviron Limited,77141
Chorley Borough Council,http://statistics.data.gov.uk/id/local-authority/30UE,Capital,Capital,Business Development & Growth,Equipment,3014,Capital Expenditure,Capital,"3 x MEC1000009690 Anchoring kits for excavation, Strada Evo2   169.00 each = 507.00 + VAT 6 x MEC1000008661 Anchoring",04/05/2018,129369,712.00,Capital,Parkeon Ltd,16279
Chorley Borough Council,http://statistics.data.gov.uk/id/local-authority/30UE,Unapportionable Central OHeads,1009,Policy & Governance,Service Fees,40056,Services,5027,Occupational health fees for April 2018,09/05/2018,129424,339.00,Revenue,People Asset Management Limited,76487
Chorley Borough Council,http://statistics.data.gov.uk/id/local-authority/30UE,Unapportionable Central OHeads,1009,Policy & Governance,Service Fees,40056,Services,5027,,09/05/2018,129424,90.00,Revenue,People Asset Management Limited,76487
Chorley Borough Council,http://statistics.data.gov.uk/id/local-authority/30UE,Capital,Capital,Business Development & Growth,Other Capital Related Fees,3024,Capital Expenditure,Capital,Primrose Gardens April 2018,04/05/2018,129359,"4,328.25",Capital,Perfect Circle JV Ltd,76438
Chorley Borough Council,http://statistics.data.gov.uk/id/local-authority/30UE,Development Control,1091,Customer & Digital,Legal Fees,40171,Miscellaneous Expenses,5034,Invoice 12718,09/05/2018,129232,"5,276.25",Revenue,Peter E Gilkes & Co,17634
Chorley Borough Council,http://statistics.data.gov.uk/id/local-authority/30UE,Central Support Services,1009,Early Intervention,External Contractor,40198,Miscellaneous Expenses,5034,Pest Control services for 2018/19,04/05/2018,129133,340.00,Revenue,Peter L Johnson,16727
Chorley Borough Council,http://statistics.data.gov.uk/id/local-authority/30UE,Central Support Services,1009,Early Intervention,External Contractor,40198,Miscellaneous Expenses,5034,Pest Control services for 2018/19,04/05/2018,129280,340.00,Revenue,Peter L Johnson,16727
Chorley Borough Council,http://statistics.data.gov.uk/id/local-authority/30UE,Central Support Services,1009,Early Intervention,External Contractor,40198,Miscellaneous Expenses,5034,Pest Control services for 2018/19,09/05/2018,129459,340.00,Revenue,Peter L Johnson,16727
Chorley Borough Council,http://statistics.data.gov.uk/id/local-authority/30UE,Central Support Services,1009,Early Intervention,External Contractor,40198,Miscellaneous Expenses,5034,Pest Control services for 2018/19,16/05/2018,129675,255.00,Revenue,Peter L Johnson,16727
Chorley Borough Council,http://statistics.data.gov.uk/id/local-authority/30UE,Central Support Services,1009,Early Intervention,External Contractor,40198,Miscellaneous Expenses,5034,Pest Control services for 2018/19,23/05/2018,129780,340.00,Revenue,Peter L Johnson,16727
Chorley Borough Council,http://statistics.data.gov.uk/id/local-authority/30UE,Capital,Capital,Customer & Digital,Main Contractor,3007,Capital Expenditure,Capital,Fees Relating to Bank Hall Project,02/05/2018,128702,"3,250.00",Capital,Pick Everard,76515
Chorley Borough Council,http://statistics.data.gov.uk/id/local-authority/30UE,Service Management & Support,1009,Customer & Digital,Diesel/Derv,30007,Direct Transport Costs,5016,"Supply of 8,000 litres road diesel as per your quotation on The Chest of 8,080.00",04/05/2018,129363,"8,080.00",Revenue,Pilkington Oils,18075
Chorley Borough Council,http://statistics.data.gov.uk/id/local-authority/30UE,Service Management & Support,1009,Customer & Digital,Diesel/Derv,30007,Direct Transport Costs,5016,"Supply 2,000 litres of gas oil as per your quotation on The Chest of 1080.00",04/05/2018,129368,"1,080.00",Revenue,Pilkington Oils,18075
Chorley Borough Council,http://statistics.data.gov.uk/id/local-authority/30UE,Democratic Represent and  Mgnt,1007,Business Development & Growth,External Contractor,40198,Miscellaneous Expenses,5034,Installation of new post and wire fencing at Windsor Allotments and tidy boundary.,02/05/2018,129236,515.00,Revenue,plano ltd,77059
Chorley Borough Council,http://statistics.data.gov.uk/id/local-authority/30UE,Democratic Represent and  Mgnt,1007,Customer & Digital,Supplies-Grounds Maintenance,40025,"Equipment, Furniture & Materia",5023,Supply 26kg Euroflor Rainbow mix 102 per kg Supply 1kg Euroflor Orange/Yellow bouquet 92 per kg Supply 2kg Euroflor Sarah,16/05/2018,129690,"3,144.00",Revenue,plano ltd,77059
Chorley Borough Council,http://statistics.data.gov.uk/id/local-authority/30UE,Central Support Services,1009,Chief Executive,Other Contributions,40145,Grants and Subscriptions,5031,PCSO payment quarter 3,25/05/2018,129887,"27,500.00",Revenue,Police & Crime Commissioner,17548
Chorley Borough Council,http://statistics.data.gov.uk/id/local-authority/30UE,Parking Services,1066,Business Development & Growth,Miscellaneous Expenses,40200,Miscellaneous Expenses,5034,Portland Street car park As per quote reference 10472-3 TARIFF SIGNAGE CHANGES x 2 (Long Stay and update tariffs),23/05/2018,129201,321.87,Revenue,Poppy Signs Ltd,21898
Chorley Borough Council,http://statistics.data.gov.uk/id/local-authority/30UE,Parking Services,1066,Business Development & Growth,Miscellaneous Expenses,40200,Miscellaneous Expenses,5034,VINYL GRAPHICS - NEW PARKING AREA To supply the following signage as per Full colour digitally printed on White S/A ,04/05/2018,129327,497.51,Revenue,Poppy Signs Ltd,21898
Chorley Borough Council,http://statistics.data.gov.uk/id/local-authority/30UE,Parking Services,1066,Business Development & Growth,Miscellaneous Expenses,40200,Miscellaneous Expenses,5034,As per quote reference 2 TRIANGLE POST SIGNAGE NEW PARKING AREA supply full colour digitally UV printed 10mm Correx,04/05/2018,129327,171.52,Revenue,Poppy Signs Ltd,21898
Chorley Borough Council,http://statistics.data.gov.uk/id/local-authority/30UE,Parking Services,1066,Business Development & Growth,Miscellaneous Expenses,40200,Miscellaneous Expenses,5034,MARKET WALK TENANT PERMIT PARKING To supply & Install full colour digitally UV Printed on 10mm correx,04/05/2018,129327,471.20,Revenue,Poppy Signs Ltd,21898
Chorley Borough Council,http://statistics.data.gov.uk/id/local-authority/30UE,Capital,Capital,Business Development & Growth,Other Materials,3017,Capital Expenditure,Capital,"Quotation REF10522/1. Harpers Lane Signage. Batch of 2 Play Area Signage, batch of 4 Welcome Signs batch of 2 bowling green",23/05/2018,129367,528.54,Capital,Poppy Signs Ltd,21898
Chorley Borough Council,http://statistics.data.gov.uk/id/local-authority/30UE,Unapportionable Central OHeads,1009,Policy & Governance,Fixtures & Fittings - Purchase,20027,Fixtures and Fittings,5010,signs,16/05/2018,129653,208.19,Revenue,Poppy Signs Ltd,21898
Chorley Borough Council,http://statistics.data.gov.uk/id/local-authority/30UE,Unapportionable Central OHeads,1009,Policy & Governance,Fixtures & Fittings - Purchase,20027,Fixtures and Fittings,5010,signs,16/05/2018,129653,208.20,Revenue,Poppy Signs Ltd,21898
Chorley Borough Council,http://statistics.data.gov.uk/id/local-authority/30UE,Central Support Services,1009,Early Intervention,Miscellaneous Expenses,40200,Miscellaneous Expenses,5034,PSPO Signage for Town Centre and Coppull. Aluminium Composite Signage 10 x Coppull 15 x Town Centre,18/05/2018,129712,898.71,Revenue,Poppy Signs Ltd,21898
Chorley Borough Council,http://statistics.data.gov.uk/id/local-authority/30UE,Unapportionable Central OHeads,1009,Policy & Governance,HR Approved Training Expenses,17001,Indirect Employee Expenses,5002,"ILM Programme, Module 2 08/05/18: Daily Delivery cost",23/05/2018,129772,"1,200.00",Revenue,Potential Unearthed,22243
Chorley Borough Council,http://statistics.data.gov.uk/id/local-authority/30UE,Unapportionable Central OHeads,1009,Policy & Governance,HR Approved Training Expenses,17001,Indirect Employee Expenses,5002,Cost of workbooks - 5.00 per head x 11 books,23/05/2018,129772,55.00,Revenue,Potential Unearthed,22243
Chorley Borough Council,http://statistics.data.gov.uk/id/local-authority/30UE,Unapportionable Central OHeads,1009,Policy & Governance,HR Approved Training Expenses,17001,Indirect Employee Expenses,5002,Cost of Formal Quality Assessments x 10 @ 20 each,23/05/2018,129772,200.00,Revenue,Potential Unearthed,22243
Chorley Borough Council,http://statistics.data.gov.uk/id/local-authority/30UE,Unapportionable Central OHeads,1009,Policy & Governance,Refreshments,40036,Catering,5024,"Supply, Sanitation, provision of cups and water for all Pressure Coolers for Council Sites for the month of May 2018",11/05/2018,128934,451.80,Revenue,Pressure Coolers Ltd T/A Maestro International Ltd,19767
Chorley Borough Council,http://statistics.data.gov.uk/id/local-authority/30UE,Private Sector HSG Renewal,1073,Early Intervention,External Contractor,40198,Miscellaneous Expenses,5034,Provision of Handyperson services (funded by LCC IHIS) Q1 2018/19 for the period 1.4.18 to 30.6.18,09/05/2018,129518,"7,405.75",Revenue,Preston Care and Repair,50018
Chorley Borough Council,http://statistics.data.gov.uk/id/local-authority/30UE,Planning Policy,1092,Business Development & Growth,General Subscriptions,40146,Grants and Subscriptions,5031,CIL POS Group Subscription,30/05/2018,129955,500.00,Revenue,Preston City Council,16657
Chorley Borough Council,http://statistics.data.gov.uk/id/local-authority/30UE,Tourism,1039,Policy & Governance,Professional Fees,40063,Services,5027,"Appearance, Presentation and Q&A",02/05/2018,129092,"4,500.00",Revenue,Prime Performers Limited,70499
Chorley Borough Council,http://statistics.data.gov.uk/id/local-authority/30UE,Tourism,1039,Policy & Governance,Professional Fees,40063,Services,5027,"Flower Show Appearance, presentation and Q&A",02/05/2018,129093,"4,500.00",Revenue,Prime Performers Limited,70499
Chorley Borough Council,http://statistics.data.gov.uk/id/local-authority/30UE,Elections,1012,Policy & Governance,Printing,40043,"Printing, Stationery & General",5026,Polling Station Ballot books,04/05/2018,129408,"8,249.75",Revenue,Print Image Network,21171
Chorley Borough Council,http://statistics.data.gov.uk/id/local-authority/30UE,Elections,1012,Policy & Governance,Printing,40043,"Printing, Stationery & General",5026,Chorley Borough Postal Packs - 3 may 2018,04/05/2018,129409,"17,640.16",Revenue,Print Image Network,21171
Chorley Borough Council,http://statistics.data.gov.uk/id/local-authority/30UE,Elections,1012,Policy & Governance,Printing,40043,"Printing, Stationery & General",5026,chorley Parish Ballot books,04/05/2018,129410,"2,173.82",Revenue,Print Image Network,21171
Chorley Borough Council,http://statistics.data.gov.uk/id/local-authority/30UE,Other Short Term Creditors,,Policy & Governance,General Balances,100,Balance Sheet,Balance,sal ded L004/17332,18/05/2018,129725,"3,795.03",Revenue,PRUDENTIAL,18178
Chorley Borough Council,http://statistics.data.gov.uk/id/local-authority/30UE,Open Spaces,1038,Business Development & Growth,Professional Fees,40063,Services,5027,Feasibility  and Design Services for Westway Playing fields,16/05/2018,129635,"1,500.00",Revenue,PSD Agronomy,18543
Chorley Borough Council,http://statistics.data.gov.uk/id/local-authority/30UE,Business Support,1095,Business Development & Growth,Grants To Other Organisations,40127,Grants and Subscriptions,5031,GRANT,02/05/2018,129281,250.00,Revenue,NAME REDACTED,77298
Chorley Borough Council,http://statistics.data.gov.uk/id/local-authority/30UE,Economic Development,1096,Business Development & Growth,Training Course Fees,17010,Indirect Employee Expenses,5002,To reserve 2 places on Service Charge Professional Awareness on Thursday 3rd May 18 Delegate names: NAME REDACTED,16/05/2018,129642,498.00,Revenue,Revo,71884
Chorley Borough Council,http://statistics.data.gov.uk/id/local-authority/30UE,Control Accounts,Control,Policy & Governance,General Balances,100,Balance Sheet,Balance,chilcare vouchers,22/05/2018,128640,"4,775.33",Revenue,Reward Gateway (UK) Ltd,66814
Chorley Borough Council,http://statistics.data.gov.uk/id/local-authority/30UE,Control Accounts,Control,Policy & Governance,General Balances,100,Balance Sheet,Balance,childcare vouchers,22/05/2018,129402,"4,779.50",Revenue,Reward Gateway (UK) Ltd,66814
Chorley Borough Council,http://statistics.data.gov.uk/id/local-authority/30UE,Central Support Services,1009,Early Intervention,Training Course Fees,17010,Indirect Employee Expenses,5002,"Private Water Supply Consultancy with Training session, risk assessment and report production",30/05/2018,129954,"1,065.35",Revenue,RH Environmental Ltd,64885
Chorley Borough Council,http://statistics.data.gov.uk/id/local-authority/30UE,Corporate Management,1008,Customer & Digital,Consultants` Fees,40077,Services,5027,Consultancy services (phase 2) to support the provision of a waste collection contract,18/05/2018,129724,"2,668.25",Revenue,Ricardo Energy & Environment,76939
Chorley Borough Council,http://statistics.data.gov.uk/id/local-authority/30UE,Business Support,1095,Business Development & Growth,Miscellaneous Expenses,40200,Miscellaneous Expenses,5034,"Digital Hub Lifecycle Costing to achieve the following BREEAM credits �	Elemental life cycle cost (2 credits) �	Component level life",11/05/2018,129522,"7,000.00",Revenue,Rider Levett Bucknall,67527
Chorley Borough Council,http://statistics.data.gov.uk/id/local-authority/30UE,Business Support,1095,Business Development & Growth,Miscellaneous Expenses,40200,Miscellaneous Expenses,5034,Additional works outside of current contracted scope - CDOP acceleration/delay costs substantiation works.,11/05/2018,129523,"12,100.00",Revenue,Rider Levett Bucknall,67527
Chorley Borough Council,http://statistics.data.gov.uk/id/local-authority/30UE,Service Management & Support,1009,Customer & Digital,Supplies-Grounds Maintenance,40025,"Equipment, Furniture & Materia",5023,Trustee Amenity - 5 Litres,23/05/2018,129723,"1,080.00",Revenue,Rigby Taylor Ltd,16299
Chorley Borough Council,http://statistics.data.gov.uk/id/local-authority/30UE,Service Management & Support,1009,Customer & Digital,Supplies-Grounds Maintenance,40025,"Equipment, Furniture & Materia",5023,R14 Grass seed 15Kg,23/05/2018,129723,68.00,Revenue,Rigby Taylor Ltd,16299
Chorley Borough Council,http://statistics.data.gov.uk/id/local-authority/30UE,Unapportionable Central OHeads,1009,Policy & Governance,Miscellaneous Expenses,40200,Miscellaneous Expenses,5034,Traffic Management,09/05/2018,129485,"7,660.00",Revenue,Road Safety Services Ltd,69457
Chorley Borough Council,http://statistics.data.gov.uk/id/local-authority/30UE,Open Spaces,1038,Business Development & Growth,Professional Fees,40063,Services,5027,Design of AGP up to RIBA Stage 4,04/05/2018,129338,"8,224.56",Revenue,Robinson Low Francis LLP,77155
Chorley Borough Council,http://statistics.data.gov.uk/id/local-authority/30UE,Central Support Services,1009,Early Intervention,Sports Development Initiatives,40186,Miscellaneous Expenses,5034,Morning activities ( Archery and Low Ropes Course) with 17 under 18s.,25/05/2018,129818,310.83,Revenue,Rock and River Outdoor Pursuits,57631
Chorley Borough Council,http://statistics.data.gov.uk/id/local-authority/30UE,Elections,1012,Policy & Governance,Postages,40082,Communication and Computing,5028,"postal vote returns, borough and parish 2018 RXAE-GAEJ-REXJ",09/05/2018,129488,"1,387.20",Revenue,Royal Mail Group Plc,17522
Chorley Borough Council,http://statistics.data.gov.uk/id/local-authority/30UE,Elections,1012,Policy & Governance,Postages,40082,Communication and Computing,5028,postal votes for Borough and Parish Elections 2018 mailed out on 18 April 2018,11/05/2018,129489,"11,140.30",Revenue,Royal Mail Group Plc,17522
Chorley Borough Council,http://statistics.data.gov.uk/id/local-authority/30UE,Elections,1012,Policy & Governance,Postages,40082,Communication and Computing,5028,"postal vote returns, borough and parish 2018 RXAE-GAEJ-REXJ",23/05/2018,129795,"1,443.84",Revenue,Royal Mail Group Plc,17522
Chorley Borough Council,http://statistics.data.gov.uk/id/local-authority/30UE,Elections,1012,Policy & Governance,Postages,40082,Communication and Computing,5028,"postal vote returns, borough and parish 2018 RXAE-GAEJ-REXJ",23/05/2018,129797,"4,504.32",Revenue,Royal Mail Group Plc,17522
Chorley Borough Council,http://statistics.data.gov.uk/id/local-authority/30UE,Development Control,1091,Customer & Digital,Consultants` Fees,40077,Services,5027,ADAS PLANNING RESPONSE TO PLANNING APPLICATIONS  17/00209 - 205 17/00940/OUT - 409 17/00769/OUT - 409,25/05/2018,129897,"1,023.00",Revenue,RSK ADAS UK Limited,16930
Chorley Borough Council,http://statistics.data.gov.uk/id/local-authority/30UE,Development Control,1091,Customer & Digital,Training Course Fees,17010,Indirect Employee Expenses,5002,10 x North West tickets purchased  (Multi-buy code: NW/3366/75GRKP9FPW),04/05/2018,129397,850.00,Revenue,RTPI North West,16769
Chorley Borough Council,http://statistics.data.gov.uk/id/local-authority/30UE,Democratic Represent and  Mgnt,1007,Business Development & Growth,Electricity,20013,Energy Costs,5006,tatton comm ctr 24/2/18 to 16/5/18,30/05/2018,129928,674.56,Revenue,Scottish Power,18998
Chorley Borough Council,http://statistics.data.gov.uk/id/local-authority/30UE,Democratic Represent and  Mgnt,1007,Business Development & Growth,Electricity,20013,Energy Costs,5006,23/11/17 to 23/2/18,30/05/2018,129930,777.07,Revenue,Scottish Power,18998
Chorley Borough Council,http://statistics.data.gov.uk/id/local-authority/30UE,Business Support,1095,Business Development & Growth,Security Service,40062,Services,5027,Security services at Market Walk Shopping Centre from 1st April 2018 to 31st March 2019 @6683 per month Contract No 754775,09/05/2018,129194,"6,683.00",Revenue,Securitas Security Services (UK) Ltd,70693
Chorley Borough Council,http://statistics.data.gov.uk/id/local-authority/30UE,Business Support,1095,Business Development & Growth,Grants To Other Organisations,40127,Grants and Subscriptions,5031,big grant,11/05/2018,129475,"2,800.00",Revenue,Service Sport Ltd,65601
Chorley Borough Council,http://statistics.data.gov.uk/id/local-authority/30UE,Service Management & Support,1009,Customer & Digital,Vehicles and Plant Operating Lease,30029,Contrct Hire & Operating Lease,5018,Settlement figure on termination of lease due to vehicle being stolen PO16 MFA,16/05/2018,129644,"9,849.54",Revenue,SG EQUIPMENT FINANCE LTD,18156
Chorley Borough Council,http://statistics.data.gov.uk/id/local-authority/30UE,Tourism,1039,Policy & Governance,Publicity - Advertising,40157,Miscellaneous Expenses,5034,Promo Video,02/05/2018,129237,350.00,Revenue,SkyOptics Ltd,76623
Chorley Borough Council,http://statistics.data.gov.uk/id/local-authority/30UE,Public Transport,1067,Customer & Digital,Bus Shelters -Maintenance,20062,Grounds Maintenance Costs,5013,"Complete repairs to the bus shelter opposite 109 Bolton Rd, Anderton as per your e-mail quote dated 18 April 2018 10:18 for 256",11/05/2018,129351,256.00,Revenue,SM Sheet Metal Ltd,21243
Chorley Borough Council,http://statistics.data.gov.uk/id/local-authority/30UE,Service Management & Support,1009,Customer & Digital,Protective Clothing,40040,"Clothing, Uniforms and Laundry",5025,Hercules 620 S3 SRC Safety Boot (Ankle).  Size = 7.  Product Code = F962,09/05/2018,129434,21.50,Revenue,Smart Image Workwear,21064
Chorley Borough Council,http://statistics.data.gov.uk/id/local-authority/30UE,Service Management & Support,1009,Customer & Digital,Protective Clothing,40040,"Clothing, Uniforms and Laundry",5025,Hercules 620 S3 SRC Safety Boot (Ankle).  Size = 8.  Product Code = F962,09/05/2018,129434,86.00,Revenue,Smart Image Workwear,21064
Chorley Borough Council,http://statistics.data.gov.uk/id/local-authority/30UE,Service Management & Support,1009,Customer & Digital,Protective Clothing,40040,"Clothing, Uniforms and Laundry",5025,Hercules 620 S3 SRC Safety Boot (Ankle).  Size = 10.  Product Code = F962,09/05/2018,129434,107.50,Revenue,Smart Image Workwear,21064
Chorley Borough Council,http://statistics.data.gov.uk/id/local-authority/30UE,Service Management & Support,1009,Customer & Digital,Protective Clothing,40040,"Clothing, Uniforms and Laundry",5025,Hercules 620 S3 SRC Safety Boot (Ankle).  Size =11.  Product Code = F962,09/05/2018,129434,43.00,Revenue,Smart Image Workwear,21064
Chorley Borough Council,http://statistics.data.gov.uk/id/local-authority/30UE,Central Support Services,1009,Customer & Digital,IT Software - Annual Licences,40101,Communication and Computing,5028,Microsoft License Renewals 3 years,16/05/2018,129613,"57,304.04",Revenue,Softcat Ltd,69996
Chorley Borough Council,http://statistics.data.gov.uk/id/local-authority/30UE,Control Accounts,Control,Policy & Governance,General Balances,100,Balance Sheet,Balance,attachment of earnings for 31942376,18/05/2018,129722,539.60,Revenue,South Ribble Borough Council,17889
Chorley Borough Council,http://statistics.data.gov.uk/id/local-authority/30UE,Business Support,1095,Business Development & Growth,Electricity,20013,Energy Costs,5006,oak house,04/05/2018,129400,258.16,Revenue,SSE Swalec,76853
Chorley Borough Council,http://statistics.data.gov.uk/id/local-authority/30UE,Business Support,1095,Business Development & Growth,Electricity,20013,Energy Costs,5006,24/1/18 to 25/4/18,04/05/2018,129404,258.16,Revenue,SSE Swalec,76853
Chorley Borough Council,http://statistics.data.gov.uk/id/local-authority/30UE,Economic Development,1096,Business Development & Growth,Miscellaneous Expenses,40200,Miscellaneous Expenses,5034,For catering services at the Choose Chorley Business Evening on 19th April,30/05/2018,129945,"1,543.80",Revenue,St Catherines Social Enterprise Ltd,76345
Chorley Borough Council,http://statistics.data.gov.uk/id/local-authority/30UE,Parking Services,1066,Business Development & Growth,Miscellaneous Expenses,40200,Miscellaneous Expenses,5034,Mar-18,04/05/2018,129447,"1,789.28",Revenue,Stagecoach Services Limited,18598
Chorley Borough Council,http://statistics.data.gov.uk/id/local-authority/30UE,Corporate Management,1008,Policy & Governance,Other Contributions,40145,Grants and Subscriptions,5031,For the provision of the 7C bus service from 1 April 2018 to 30 June 2018,16/05/2018,129617,"1,573.55",Revenue,Stagecoach Services Limited,18598
Chorley Borough Council,http://statistics.data.gov.uk/id/local-authority/30UE,Parking Services,1066,Business Development & Growth,Miscellaneous Expenses,40200,Miscellaneous Expenses,5034,Park & Ride service from Morrison`s every Tuesday & Saturday from Tuesday 3rd April 2018 - Saturday 30th March 2019,23/05/2018,129799,447.32,Revenue,Stagecoach Services Limited,18598
Chorley Borough Council,http://statistics.data.gov.uk/id/local-authority/30UE,Parking Services,1066,Business Development & Growth,Miscellaneous Expenses,40200,Miscellaneous Expenses,5034,To provide a Park & Ride service from Morrison`s every Tuesday & Saturday from Tuesday 3rd April 2018 Saturday 30th March 19,23/05/2018,129800,"1,789.28",Revenue,Stagecoach Services Limited,18598
Chorley Borough Council,http://statistics.data.gov.uk/id/local-authority/30UE,Corporate Management,1008,Policy & Governance,Other Contributions,40145,Grants and Subscriptions,5031,For the provision of the 7C bus service from 1 April 2018 to 30 June 2018,23/05/2018,129801,"7,582.73",Revenue,Stagecoach Services Limited,18598
Chorley Borough Council,http://statistics.data.gov.uk/id/local-authority/30UE,Central Support Services,1009,Customer & Digital,Computer Equipment-Maintenance,40105,Communication and Computing,5028,Hardware maintenance,16/05/2018,128887,"27,201.00",Revenue,Starcom Technologies Limited,20541
Chorley Borough Council,http://statistics.data.gov.uk/id/local-authority/30UE,Unapportionable Central OHeads,1009,Business Development & Growth,Asset Maintenance Fund,20012,Repairs Maintenance & Alts,5005,Gate at Burgh Hall Lane,04/05/2018,128959,"1,100.00",Revenue,Stringfellow Bldg Cntrctrs Ltd,17893
Chorley Borough Council,http://statistics.data.gov.uk/id/local-authority/30UE,Unapportionable Central OHeads,1009,Business Development & Growth,General Repairs - Reactive,20004,Repairs Maintenance & Alts,5005,Blanket order for reactive repairs,02/05/2018,128992,"1,000.00",Revenue,Stringfellow Bldg Cntrctrs Ltd,17893
Chorley Borough Council,http://statistics.data.gov.uk/id/local-authority/30UE,Unapportionable Central OHeads,1009,Business Development & Growth,General Repairs - Reactive,20004,Repairs Maintenance & Alts,5005,Blanket order for reactive repairs,02/05/2018,128994,540.08,Revenue,Stringfellow Bldg Cntrctrs Ltd,17893
Chorley Borough Council,http://statistics.data.gov.uk/id/local-authority/30UE,Unapportionable Central OHeads,1009,Business Development & Growth,General Repairs - Reactive,20004,Repairs Maintenance & Alts,5005,Blanket order for reactive repairs,02/05/2018,128996,259.50,Revenue,Stringfellow Bldg Cntrctrs Ltd,17893
Chorley Borough Council,http://statistics.data.gov.uk/id/local-authority/30UE,Capital,Capital,Early Intervention,Grants,3002,Capital Expenditure,Capital,ADDRESS REDACTED,04/05/2018,129248,"2,972.00",Capital,Stringfellow Bldg Cntrctrs Ltd,17893
Chorley Borough Council,http://statistics.data.gov.uk/id/local-authority/30UE,Unapportionable Central OHeads,1009,Business Development & Growth,General Repairs - Reactive,20004,Repairs Maintenance & Alts,5005,Blanket order for reactive repairs,02/05/2018,129259,480.20,Revenue,Stringfellow Bldg Cntrctrs Ltd,17893
Chorley Borough Council,http://statistics.data.gov.uk/id/local-authority/30UE,Unapportionable Central OHeads,1009,Business Development & Growth,General Repairs - Reactive,20004,Repairs Maintenance & Alts,5005,Blanket order for reactive repairs,04/05/2018,129260,251.51,Revenue,Stringfellow Bldg Cntrctrs Ltd,17893
Chorley Borough Council,http://statistics.data.gov.uk/id/local-authority/30UE,Unapportionable Central OHeads,1009,Business Development & Growth,General Repairs - Reactive,20004,Repairs Maintenance & Alts,5005,Blanket order for reactive repairs,23/05/2018,129537,386.23,Revenue,Stringfellow Bldg Cntrctrs Ltd,17893
Chorley Borough Council,http://statistics.data.gov.uk/id/local-authority/30UE,Unapportionable Central OHeads,1009,Business Development & Growth,General Repairs - Reactive,20004,Repairs Maintenance & Alts,5005,Blanket order for reactive repairs,16/05/2018,129589,441.00,Revenue,Stringfellow Bldg Cntrctrs Ltd,17893
Chorley Borough Council,http://statistics.data.gov.uk/id/local-authority/30UE,Unapportionable Central OHeads,1009,Business Development & Growth,General Repairs - Reactive,20004,Repairs Maintenance & Alts,5005,Blanket order for reactive repairs,16/05/2018,129600,449.60,Revenue,Stringfellow Bldg Cntrctrs Ltd,17893
Chorley Borough Council,http://statistics.data.gov.uk/id/local-authority/30UE,Unapportionable Central OHeads,1009,Business Development & Growth,General Repairs - Reactive,20004,Repairs Maintenance & Alts,5005,Blanket order for reactive repairs,23/05/2018,129623,281.25,Revenue,Stringfellow Bldg Cntrctrs Ltd,17893
Chorley Borough Council,http://statistics.data.gov.uk/id/local-authority/30UE,Capital,Capital,Early Intervention,Grants,3002,Capital Expenditure,Capital,ADDRESS REDACTED,16/05/2018,129627,"3,450.00",Capital,Stringfellow Bldg Cntrctrs Ltd,17893
Chorley Borough Council,http://statistics.data.gov.uk/id/local-authority/30UE,Capital,Capital,Early Intervention,Grants,3002,Capital Expenditure,Capital,ADDRESS REDACTED,16/05/2018,129637,"3,362.75",Capital,Stringfellow Bldg Cntrctrs Ltd,17893
Chorley Borough Council,http://statistics.data.gov.uk/id/local-authority/30UE,Elections,1012,Policy & Governance,Rent/Hire Of Premises,20017,Premises Rents,5007,Election works for May 2018 Supply of  back up generator and leads if required  Collection and Locating ramps listed return to Tow,23/05/2018,129665,930.00,Revenue,Stringfellow Bldg Cntrctrs Ltd,17893
Chorley Borough Council,http://statistics.data.gov.uk/id/local-authority/30UE,Unapportionable Central OHeads,1009,Business Development & Growth,General Repairs - Reactive,20004,Repairs Maintenance & Alts,5005,Blanket order for reactive repairs,23/05/2018,129666,"1,485.00",Revenue,Stringfellow Bldg Cntrctrs Ltd,17893
Chorley Borough Council,http://statistics.data.gov.uk/id/local-authority/30UE,Capital,Capital,Early Intervention,Grants,3002,Capital Expenditure,Capital,ADDRESS REDACTED,25/05/2018,129908,"3,716.60",Capital,Stringfellow Bldg Cntrctrs Ltd,17893
Chorley Borough Council,http://statistics.data.gov.uk/id/local-authority/30UE,Unapportionable Central OHeads,1009,Policy & Governance,Mayors Medals,40029,"Equipment, Furniture & Materia",5023,"Photography for Mayor`s official photos, proof, prints and disc.",30/05/2018,129923,450.00,Revenue,Studio Twelve,17895
Chorley Borough Council,http://statistics.data.gov.uk/id/local-authority/30UE,Unapportionable Central OHeads,1009,Policy & Governance,Mayoral Hospitality,40123,Expenses,5030,Catering for Mayor`s Civic Dinner on 18th May 2018 @ 14.50 per head.,30/05/2018,129946,"2,001.00",Revenue,Style Catering,66901
Chorley Borough Council,http://statistics.data.gov.uk/id/local-authority/30UE,Corporate Management,1008,Policy & Governance,Exhibitions & Special Events,40158,Miscellaneous Expenses,5034,"Hire of giant games, crazy golf and staff to deliver school holiday activities in Market Walk",02/05/2018,129182,840.00,Revenue,Sunshine Events,22127
Chorley Borough Council,http://statistics.data.gov.uk/id/local-authority/30UE,Capital,Capital,Business Development & Growth,Consultants Fees,3025,Capital Expenditure,Capital,Additional works at Chorley Cemetery,04/05/2018,129120,375.00,Capital,Survey Operations Ltd,55910
Chorley Borough Council,http://statistics.data.gov.uk/id/local-authority/30UE,Capital,Capital,Business Development & Growth,Consultants Fees,3025,Capital Expenditure,Capital,CAD and site setting out of Mecca co-ordinates at Chorley Cemetery,30/05/2018,129891,420.00,Capital,Survey Operations Ltd,55910
Chorley Borough Council,http://statistics.data.gov.uk/id/local-authority/30UE,Unapportionable Central OHeads,1009,Policy & Governance,Cleaning Materials,40019,"Equipment, Furniture & Materia",5023, TB Atlas thick bleach 5ltr QTY 2 boxes @ 1.55 per container 4 containers in total,02/05/2018,128960,6.28,Revenue,System Hygiene Ltd,16572
Chorley Borough Council,http://statistics.data.gov.uk/id/local-authority/30UE,Unapportionable Central OHeads,1009,Policy & Governance,Cleaning Materials,40019,"Equipment, Furniture & Materia",5023,MJ200R Mini Jumbo QTY 10 packs 12/pack @ 6.65 per pack 66.50,02/05/2018,128960,86.10,Revenue,System Hygiene Ltd,16572
Chorley Borough Council,http://statistics.data.gov.uk/id/local-authority/30UE,Unapportionable Central OHeads,1009,Policy & Governance,Cleaning Materials,40019,"Equipment, Furniture & Materia",5023, TRI Evans Vanodine Trigon handsoap unperfumed 5 L 5.52 QTY 4 boxes,02/05/2018,128960,22.08,Revenue,System Hygiene Ltd,16572
Chorley Borough Council,http://statistics.data.gov.uk/id/local-authority/30UE,Unapportionable Central OHeads,1009,Policy & Governance,Cleaning Materials,40019,"Equipment, Furniture & Materia",5023,EVER Everfresh Evens toilet cleaner apple 5L 3.38 per container QTY 4 boxes,02/05/2018,128960,13.52,Revenue,System Hygiene Ltd,16572
Chorley Borough Council,http://statistics.data.gov.uk/id/local-authority/30UE,Unapportionable Central OHeads,1009,Policy & Governance,Cleaning Materials,40019,"Equipment, Furniture & Materia",5023,HSC hard surface cleaner 5litre QTY 4   at 5.28 each,02/05/2018,128960,17.96,Revenue,System Hygiene Ltd,16572
Chorley Borough Council,http://statistics.data.gov.uk/id/local-authority/30UE,Unapportionable Central OHeads,1009,Policy & Governance,Cleaning Materials,40019,"Equipment, Furniture & Materia",5023,BLU Evans High Active Washing up Liquid/Detergent 5 litre PH Neutral 3.26 QTY 3 boxes,02/05/2018,128960,19.56,Revenue,System Hygiene Ltd,16572
Chorley Borough Council,http://statistics.data.gov.uk/id/local-authority/30UE,Unapportionable Central OHeads,1009,Policy & Governance,Cleaning Materials,40019,"Equipment, Furniture & Materia",5023,CP Charm Furniture polish 95p each QTY 8,02/05/2018,128960,6.48,Revenue,System Hygiene Ltd,16572
Chorley Borough Council,http://statistics.data.gov.uk/id/local-authority/30UE,Unapportionable Central OHeads,1009,Policy & Governance,Cleaning Materials,40019,"Equipment, Furniture & Materia",5023,TR320 toilet rolls QTY 14 packs @ 36/pack at 5.50 per box,02/05/2018,128960,77.00,Revenue,System Hygiene Ltd,16572
Chorley Borough Council,http://statistics.data.gov.uk/id/local-authority/30UE,Unapportionable Central OHeads,1009,Policy & Governance,Cleaning Materials,40019,"Equipment, Furniture & Materia",5023,MJ200R Mini Jumbo QTY 10 packs 12/pack @ 6.65 per pack,02/05/2018,128960,86.10,Revenue,System Hygiene Ltd,16572
Chorley Borough Council,http://statistics.data.gov.uk/id/local-authority/30UE,Unapportionable Central OHeads,1009,Policy & Governance,Cleaning Materials,40019,"Equipment, Furniture & Materia",5023,Paper towels 3600 green 1 fold QTY 15 boxes 10.10 per box,02/05/2018,128960,151.50,Revenue,System Hygiene Ltd,16572
Chorley Borough Council,http://statistics.data.gov.uk/id/local-authority/30UE,Unapportionable Central OHeads,1009,Policy & Governance,Cleaning Materials,40019,"Equipment, Furniture & Materia",5023,"UB3752	 Sirius Centrefeed 2 ply roll 150m Blue 6 pack 11.70 QTY 6 packs",02/05/2018,128960,43.20,Revenue,System Hygiene Ltd,16572
Chorley Borough Council,http://statistics.data.gov.uk/id/local-authority/30UE,Unapportionable Central OHeads,1009,Policy & Governance,Cleaning Materials,40019,"Equipment, Furniture & Materia",5023,HENRY Vacuum bags 4.18 10 per pack QTY 2 boxes,02/05/2018,128960,9.10,Revenue,System Hygiene Ltd,16572
Chorley Borough Council,http://statistics.data.gov.uk/id/local-authority/30UE,Unapportionable Central OHeads,1009,Policy & Governance,Cleaning Materials,40019,"Equipment, Furniture & Materia",5023,CAF Spray Air fresh QTY 12 @0.70 each,02/05/2018,128960,6.00,Revenue,System Hygiene Ltd,16572
Chorley Borough Council,http://statistics.data.gov.uk/id/local-authority/30UE,Unapportionable Central OHeads,1009,Policy & Governance,Cleaning Materials,40019,"Equipment, Furniture & Materia",5023,SAF Stand up air freshener 12 per case and 3.36 per case QTY 3 cases,02/05/2018,128960,10.08,Revenue,System Hygiene Ltd,16572
Chorley Borough Council,http://statistics.data.gov.uk/id/local-authority/30UE,Unapportionable Central OHeads,1009,Policy & Governance,Cleaning Materials,40019,"Equipment, Furniture & Materia",5023,NVF Neutrodol X 3 Vacuum Fresh QTY 12 packets @ 1.07 each,02/05/2018,128960,3.21,Revenue,System Hygiene Ltd,16572
Chorley Borough Council,http://statistics.data.gov.uk/id/local-authority/30UE,Unapportionable Central OHeads,1009,Policy & Governance,Cleaning Materials,40019,"Equipment, Furniture & Materia",5023,DCS Green Dishcloths QTY 10 packs 10/pack @ 1.92 each,02/05/2018,128960,19.90,Revenue,System Hygiene Ltd,16572
Chorley Borough Council,http://statistics.data.gov.uk/id/local-authority/30UE,Unapportionable Central OHeads,1009,Policy & Governance,Cleaning Materials,40019,"Equipment, Furniture & Materia",5023,DCS Yellow Dishcloths QTY 6 packs 10/pack @ 1.92 each,02/05/2018,128960,11.94,Revenue,System Hygiene Ltd,16572
Chorley Borough Council,http://statistics.data.gov.uk/id/local-authority/30UE,Democratic Represent and  Mgnt,1007,Early Intervention,Cleaning Materials,40019,"Equipment, Furniture & Materia",5023,"LBBL	Bin Liners x 200	13.13 x 2",16/05/2018,129296,18.84,Revenue,System Hygiene Ltd,16572
Chorley Borough Council,http://statistics.data.gov.uk/id/local-authority/30UE,Democratic Represent and  Mgnt,1007,Early Intervention,Cleaning Materials,40019,"Equipment, Furniture & Materia",5023,"WG750	Glass Cleaner	1.92 x 3",16/05/2018,129296,3.60,Revenue,System Hygiene Ltd,16572
Chorley Borough Council,http://statistics.data.gov.uk/id/local-authority/30UE,Democratic Represent and  Mgnt,1007,Early Intervention,Cleaning Materials,40019,"Equipment, Furniture & Materia",5023,"DBUGP	5 x Floor Scourer(Abrasive)	5.92 x 1",16/05/2018,129296,2.80,Revenue,System Hygiene Ltd,16572
Chorley Borough Council,http://statistics.data.gov.uk/id/local-authority/30UE,Democratic Represent and  Mgnt,1007,Early Intervention,Cleaning Materials,40019,"Equipment, Furniture & Materia",5023,"DBUGPADW	5 x Floor Scourer (Non-Abrasive)	2.85 x 1",16/05/2018,129296,3.25,Revenue,System Hygiene Ltd,16572
Chorley Borough Council,http://statistics.data.gov.uk/id/local-authority/30UE,Democratic Represent and  Mgnt,1007,Early Intervention,Cleaning Materials,40019,"Equipment, Furniture & Materia",5023,"FLO 730	V-Mop Scissor Magnet Floor Sweeper	74.59 x 1",16/05/2018,129296,74.59,Revenue,System Hygiene Ltd,16572
Chorley Borough Council,http://statistics.data.gov.uk/id/local-authority/30UE,Democratic Represent and  Mgnt,1007,Early Intervention,Cleaning Materials,40019,"Equipment, Furniture & Materia",5023,"FLO 735	V-Mop Replacement Heads x 2	25.06 x 1",16/05/2018,129296,25.06,Revenue,System Hygiene Ltd,16572
Chorley Borough Council,http://statistics.data.gov.uk/id/local-authority/30UE,Democratic Represent and  Mgnt,1007,Early Intervention,Cleaning Materials,40019,"Equipment, Furniture & Materia",5023,"WFS	Wet Floor Sign	2.97 x 2",16/05/2018,129296,5.34,Revenue,System Hygiene Ltd,16572
Chorley Borough Council,http://statistics.data.gov.uk/id/local-authority/30UE,Democratic Represent and  Mgnt,1007,Early Intervention,Cleaning Materials,40019,"Equipment, Furniture & Materia",5023,"SAF	Solid Air Freshener	0.38 x 12",16/05/2018,129296,3.36,Revenue,System Hygiene Ltd,16572
Chorley Borough Council,http://statistics.data.gov.uk/id/local-authority/30UE,Democratic Represent and  Mgnt,1007,Early Intervention,Cleaning Materials,40019,"Equipment, Furniture & Materia",5023,"SOL1	Washing-Up Liquid	1.95 x 6",16/05/2018,129296,10.56,Revenue,System Hygiene Ltd,16572
Chorley Borough Council,http://statistics.data.gov.uk/id/local-authority/30UE,Democratic Represent and  Mgnt,1007,Early Intervention,Cleaning Materials,40019,"Equipment, Furniture & Materia",5023,"SZ750	Evans Safe Zone-Trigger	2.63 x 6",16/05/2018,129296,9.90,Revenue,System Hygiene Ltd,16572
Chorley Borough Council,http://statistics.data.gov.uk/id/local-authority/30UE,Democratic Represent and  Mgnt,1007,Early Intervention,Cleaning Materials,40019,"Equipment, Furniture & Materia",5023,"30SSB	6 x 1 Ply Blue Cleaing Roll (Centrefeed)	13.67 x 2",16/05/2018,129296,14.40,Revenue,System Hygiene Ltd,16572
Chorley Borough Council,http://statistics.data.gov.uk/id/local-authority/30UE,Democratic Represent and  Mgnt,1007,Early Intervention,Cleaning Materials,40019,"Equipment, Furniture & Materia",5023,"SMARTMJ	12 x Centrefeed Toilet Roll	34.00 x 2",16/05/2018,129296,68.00,Revenue,System Hygiene Ltd,16572
Chorley Borough Council,http://statistics.data.gov.uk/id/local-authority/30UE,Democratic Represent and  Mgnt,1007,Early Intervention,Cleaning Materials,40019,"Equipment, Furniture & Materia",5023,1ply Z fold green paper hand towels 3000 per case 12.60 x 2,16/05/2018,129296,25.20,Revenue,System Hygiene Ltd,16572
Chorley Borough Council,http://statistics.data.gov.uk/id/local-authority/30UE,Unapportionable Central OHeads,1009,Policy & Governance,Cleaning Materials,40019,"Equipment, Furniture & Materia",5023,Paper towels 3600 green 1 fold QTY 20 boxes 10.10 per box,11/05/2018,129509,202.00,Revenue,System Hygiene Ltd,16572
Chorley Borough Council,http://statistics.data.gov.uk/id/local-authority/30UE,Unapportionable Central OHeads,1009,Policy & Governance,Cleaning Materials,40019,"Equipment, Furniture & Materia",5023,"UB3752	 Sirius Centrefeed 2 ply roll 150m Blue 6 packs 11.70 QTY 10 packs",11/05/2018,129509,72.00,Revenue,System Hygiene Ltd,16572
Chorley Borough Council,http://statistics.data.gov.uk/id/local-authority/30UE,Unapportionable Central OHeads,1009,Policy & Governance,Cleaning Materials,40019,"Equipment, Furniture & Materia",5023,EXCEL 250 Twine Mop Red 1.61 each QTY 10,11/05/2018,129509,14.30,Revenue,System Hygiene Ltd,16572
Chorley Borough Council,http://statistics.data.gov.uk/id/local-authority/30UE,Unapportionable Central OHeads,1009,Policy & Governance,Cleaning Materials,40019,"Equipment, Furniture & Materia",5023,EXCEL 250 Twine Mop Yellow 1.61 each QTY 10,11/05/2018,129509,14.30,Revenue,System Hygiene Ltd,16572
Chorley Borough Council,http://statistics.data.gov.uk/id/local-authority/30UE,Economic Development,1096,Business Development & Growth,Cleaning Materials,40019,"Equipment, Furniture & Materia",5023,Please supply janitorial supplies as per e-mail,23/05/2018,129848,438.48,Revenue,System Hygiene Ltd,16572
Chorley Borough Council,http://statistics.data.gov.uk/id/local-authority/30UE,Capital,Capital,Business Development & Growth,Main Contractor,3007,Capital Expenditure,Capital,"Astley Playing Field Reinstatement to showground area as quotation. Grade and level area, powerharrow, grass seed & fertilizer",30/05/2018,129947,"3,500.00",Capital,T & L Kirkham,17058
Chorley Borough Council,http://statistics.data.gov.uk/id/local-authority/30UE,Central Support Services,1009,Early Intervention,Tools & Equipment - Maintenance,40005,"Equipment, Furniture & Materia",5023,Maintenance of CCTV faults,30/05/2018,129458,465.00,Revenue,Technology Solutions,72376
Chorley Borough Council,http://statistics.data.gov.uk/id/local-authority/30UE,Central Support Services,1009,Customer & Digital,Consultants` Fees,40077,Services,5027,Independent Advice and Support - Cisco Meeting. We specifically request NAME REDACTED to attend.,16/05/2018,129687,600.00,Revenue,The Networking People (NorthWest) Ltd T/a TNP Ltd,73446
Chorley Borough Council,http://statistics.data.gov.uk/id/local-authority/30UE,Democratic Represent and  Mgnt,1007,Policy & Governance,Printing of Year Book,40045,"Printing, Stationery & General",5026,Year book diary 2018/2019,04/05/2018,129452,933.40,Revenue,The Print Quarter,17987
Chorley Borough Council,http://statistics.data.gov.uk/id/local-authority/30UE,Democratic Represent and  Mgnt,1007,Policy & Governance,Processional Routes,40177,Miscellaneous Expenses,5034,250 x Civic Sunday Order Of Service A5 Booklets.,30/05/2018,129974,258.20,Revenue,The Print Quarter,17987
Chorley Borough Council,http://statistics.data.gov.uk/id/local-authority/30UE,Central Support Services,1009,Early Intervention,Miscellaneous Expenses,40200,Miscellaneous Expenses,5034,PCC beer mats project - Chorley and SRBC CSP,23/05/2018,129805,755.00,Revenue,Thirstys.co.uk ltd,51260
Chorley Borough Council,http://statistics.data.gov.uk/id/local-authority/30UE,Unapportionable Central OHeads,1009,Policy & Governance,Legal Fees,40171,Miscellaneous Expenses,5034,Professional Fees for NAME REDACTED,25/05/2018,129898,350.00,Revenue,Thompsons Solicitors,20255
Chorley Borough Council,http://statistics.data.gov.uk/id/local-authority/30UE,Service Management & Support,1009,Customer & Digital,Grounds Maintenance Contractor,20043,Grounds Maintenance Costs,5013,"tree works to be carried out at Ackhurst Lodge, Astley Park. Part of the redevelopment of the Lodge area",02/05/2018,129286,"2,200.00",Revenue,Treescape North West Ltd,17688
Chorley Borough Council,http://statistics.data.gov.uk/id/local-authority/30UE,Service Management & Support,1009,Customer & Digital,Grounds Maintenance Contractor,20043,Grounds Maintenance Costs,5013,Tree works to be carried out @ Yarrow Valley Country Park. Part of the Reservoir Inspection recommendations,02/05/2018,129287,"3,400.00",Revenue,Treescape North West Ltd,17688
Chorley Borough Council,http://statistics.data.gov.uk/id/local-authority/30UE,Service Management & Support,1009,Customer & Digital,Grounds Maintenance Contractor,20043,Grounds Maintenance Costs,5013,"Work to be carried out at Chancery Road, Astley Village. Fell & remove 2 trees and prune others",11/05/2018,129616,720.00,Revenue,Treescape North West Ltd,17688
Chorley Borough Council,http://statistics.data.gov.uk/id/local-authority/30UE,Unapportionable Central OHeads,1009,Policy & Governance,Television Licence,40170,Miscellaneous Expenses,5034,,16/05/2018,129641,150.50,Revenue,TV Licensing,18105
Chorley Borough Council,http://statistics.data.gov.uk/id/local-authority/30UE,Unapportionable Central OHeads,1009,Policy & Governance,Television Licence,40170,Miscellaneous Expenses,5034,,16/05/2018,129641,150.50,Revenue,TV Licensing,18105
Chorley Borough Council,http://statistics.data.gov.uk/id/local-authority/30UE,Service Management & Support,1009,Customer & Digital,Petrol,30005,Direct Transport Costs,5016,Apr-18,22/05/2018,129396,691.87,Revenue,Uk Fuels Ltd,57996
Chorley Borough Council,http://statistics.data.gov.uk/id/local-authority/30UE,Unapportionable Central OHeads,1009,Policy & Governance,Miscellaneous Expenses,40200,Miscellaneous Expenses,5034,co funded,23/05/2018,129791,"1,600.80",Revenue,UK Healthcare (BDHSC),17241
Chorley Borough Council,http://statistics.data.gov.uk/id/local-authority/30UE,Control Accounts,Control,Policy & Governance,General Balances,100,Balance Sheet,Balance,top ups,23/05/2018,129791,530.76,Revenue,UK Healthcare (BDHSC),17241
Chorley Borough Council,http://statistics.data.gov.uk/id/local-authority/30UE,Unapportionable Central OHeads,1009,Policy & Governance,Miscellaneous Expenses,40200,Miscellaneous Expenses,5034,co-funded,25/05/2018,129890,"1,600.80",Revenue,UK Healthcare (BDHSC),17241
Chorley Borough Council,http://statistics.data.gov.uk/id/local-authority/30UE,Control Accounts,Control,Policy & Governance,General Balances,100,Balance Sheet,Balance,topups,25/05/2018,129890,521.90,Revenue,UK Healthcare (BDHSC),17241
Chorley Borough Council,http://statistics.data.gov.uk/id/local-authority/30UE,Unapportionable Central OHeads,1009,Customer & Digital,Service Fees,40056,Services,5027,2018-19 daily hybrid mail & annual billing,02/05/2018,128363,"19,946.58",Revenue,UKMAIL Ltd (Mail),57758
Chorley Borough Council,http://statistics.data.gov.uk/id/local-authority/30UE,Unapportionable Central OHeads,1009,Customer & Digital,Service Fees,40056,Services,5027,2018-19 daily hybrid mail & annual billing,09/05/2018,129425,"1,098.76",Revenue,UKMAIL Ltd (Mail),57758
Chorley Borough Council,http://statistics.data.gov.uk/id/local-authority/30UE,Unapportionable Central OHeads,1009,Customer & Digital,Service Fees,40056,Services,5027,2018-19 daily hybrid mail & annual billing,09/05/2018,129436,"2,417.09",Revenue,UKMAIL Ltd (Mail),57758
Chorley Borough Council,http://statistics.data.gov.uk/id/local-authority/30UE,Unapportionable Central OHeads,1009,Customer & Digital,Service Fees,40056,Services,5027,2018-19 daily hybrid mail & annual billing,09/05/2018,129437,684.57,Revenue,UKMAIL Ltd (Mail),57758
Chorley Borough Council,http://statistics.data.gov.uk/id/local-authority/30UE,Unapportionable Central OHeads,1009,Customer & Digital,Service Fees,40056,Services,5027,2018-19 daily hybrid mail & annual billing,09/05/2018,129438,970.43,Revenue,UKMAIL Ltd (Mail),57758
Chorley Borough Council,http://statistics.data.gov.uk/id/local-authority/30UE,Control Accounts,Control,Policy & Governance,General Balances,100,Balance Sheet,Balance,Monthly Deductions May 2018,16/05/2018,129715,"1,681.16",Revenue,Unify Credit Union Ltd,55509
Chorley Borough Council,http://statistics.data.gov.uk/id/local-authority/30UE,Parking Services,1066,Business Development & Growth,Rent/Hire Of Premises,20017,Premises Rents,5007,Rent for Hollinshead Street Car Park,16/05/2018,129538,"1,562.50",Revenue,United Reformed Church,20885
Chorley Borough Council,http://statistics.data.gov.uk/id/local-authority/30UE,Development Control,1091,Customer & Digital,Consultants` Fees,40077,Services,5027,Professional Services,11/05/2018,129209,"3,090.62",Revenue,Urban Vision Partnership Ltd,21181
Chorley Borough Council,http://statistics.data.gov.uk/id/local-authority/30UE,Development Control,1091,Customer & Digital,Consultants` Fees,40077,Services,5027,Professional Services,11/05/2018,129210,569.41,Revenue,Urban Vision Partnership Ltd,21181
Chorley Borough Council,http://statistics.data.gov.uk/id/local-authority/30UE,Central Support Services,1009,Business Development & Growth,Consultants` Fees,40077,Services,5027,Asset valuations for Chorley Borough Council 2017-18 accounts as per your Terms of Engagement reference: 1664792,02/05/2018,129313,"4,000.00",Revenue,Valuation Office Agency,17561
Chorley Borough Council,http://statistics.data.gov.uk/id/local-authority/30UE,Corporate Management,1008,Customer & Digital,Unitary Payment(S),50009,Private Contractors,5042,Provision of household waste and recycling collection service including subscription garden waste collections and other ancillary,04/05/2018,129308,"283,978.53",Revenue,Veolia ES (UK) Ltd,20748
Chorley Borough Council,http://statistics.data.gov.uk/id/local-authority/30UE,Corporate Management,1008,Customer & Digital,Unitary Payment(S),50009,Private Contractors,5042,Provision of waste and recycling collection service and ancillary services for 2018/19.,16/05/2018,129319,"274,390.75",Revenue,Veolia ES (UK) Ltd,20748
Chorley Borough Council,http://statistics.data.gov.uk/id/local-authority/30UE,Corporate Management,1008,Customer & Digital,"Hackney Badges, Plates Etc.",40023,"Equipment, Furniture & Materia",5023,"platform, Universal, Size 4, Kit (Black plastic plate holder) x2 packs",04/05/2018,129348,281.46,Revenue,VIP-SYSTEM LIMITED,69902
Chorley Borough Council,http://statistics.data.gov.uk/id/local-authority/30UE,Corporate Management,1008,Customer & Digital,"Hackney Badges, Plates Etc.",40023,"Equipment, Furniture & Materia",5023,Chorley HCV Size 4F unique V5 X2,23/05/2018,129803,240.86,Revenue,VIP-SYSTEM LIMITED,69902
Chorley Borough Council,http://statistics.data.gov.uk/id/local-authority/30UE,Corporate Management,1008,Customer & Digital,"Hackney Badges, Plates Etc.",40023,"Equipment, Furniture & Materia",5023,Chorley PHV Size 4F unique V5 X2,23/05/2018,129803,240.86,Revenue,VIP-SYSTEM LIMITED,69902
Chorley Borough Council,http://statistics.data.gov.uk/id/local-authority/30UE,Corporate Management,1008,Customer & Digital,"Hackney Badges, Plates Etc.",40023,"Equipment, Furniture & Materia",5023,"Flexiplate, Clear, Size 4F, Type A Adhesive X2",23/05/2018,129803,260.16,Revenue,VIP-SYSTEM LIMITED,69902
Chorley Borough Council,http://statistics.data.gov.uk/id/local-authority/30UE,Corporate Management,1008,Customer & Digital,"Hackney Badges, Plates Etc.",40023,"Equipment, Furniture & Materia",5023,Chorley HCV Size 2 x 1E Style 3_23_2  X2,23/05/2018,129803,47.00,Revenue,VIP-SYSTEM LIMITED,69902
Chorley Borough Council,http://statistics.data.gov.uk/id/local-authority/30UE,Corporate Management,1008,Customer & Digital,"Hackney Badges, Plates Etc.",40023,"Equipment, Furniture & Materia",5023,Chorley PHV Size 2 x 1E Style 3_23_2  X2,23/05/2018,129803,47.00,Revenue,VIP-SYSTEM LIMITED,69902
Chorley Borough Council,http://statistics.data.gov.uk/id/local-authority/30UE,Corporate Management,1008,Policy & Governance,Car Leasing Payment,14100,Direct Employee Expenses,5001,NAME REDACTED,04/05/2018,129226,"3,664.93",Revenue,VWFS UK Ltd T/A Volkswagen Group Leasing,56010
Chorley Borough Council,http://statistics.data.gov.uk/id/local-authority/30UE,Corporate Management,1008,Policy & Governance,Car Leasing Payment,14100,Direct Employee Expenses,5001,Car Lease,04/05/2018,129226,318.23,Revenue,VWFS UK Ltd T/A Volkswagen Group Leasing,56010
Chorley Borough Council,http://statistics.data.gov.uk/id/local-authority/30UE,Control Accounts,Control,Policy & Governance,Manual Control Account,1,Balance Sheet,Balance,Balance Sheet,04/05/2018,129226,-318.23,Revenue,VWFS UK Ltd T/A Volkswagen Group Leasing,56010
Chorley Borough Council,http://statistics.data.gov.uk/id/local-authority/30UE,Corporate Management,1008,Business Development & Growth,Water - Metered Supplies,20022,Water Services,5009,5/2/18 to 3/5/18,11/05/2018,129583,"2,804.58",Revenue,Water-plus,17926
Chorley Borough Council,http://statistics.data.gov.uk/id/local-authority/30UE,Unapportionable Central OHeads,1009,Business Development & Growth,Water - Metered Supplies,20022,Water Services,5009,5/2/18 to 3/5/18,11/05/2018,129614,415.84,Revenue,Water-plus,17926
Chorley Borough Council,http://statistics.data.gov.uk/id/local-authority/30UE,Unapportionable Central OHeads,1009,Policy & Governance,Legal Fees,40171,Miscellaneous Expenses,5034,Professional services relating to Chorley Youth Zone State Aid 28 November 2017 - 28 November 2017,02/05/2018,129238,810.00,Revenue,Weightmans LLP,22212
Chorley Borough Council,http://statistics.data.gov.uk/id/local-authority/30UE,Unapportionable Central OHeads,1009,Customer & Digital,Postages,40082,Communication and Computing,5028,Mail Collection for Town Hall and Union Street. April 2018/March 2019,16/05/2018,128978,472.16,Revenue,Whistl North Limited,67256
Chorley Borough Council,http://statistics.data.gov.uk/id/local-authority/30UE,Unapportionable Central OHeads,1009,Customer & Digital,Postages,40082,Communication and Computing,5028,Mail Collection for Town Hall and Union Street. April 2018/March 2019,16/05/2018,129168,375.99,Revenue,Whistl North Limited,67256
Chorley Borough Council,http://statistics.data.gov.uk/id/local-authority/30UE,Capital,Capital,Business Development & Growth,Other Materials,3017,Capital Expenditure,Capital,Wall mounted Dual door notice board Overall dimensions 1050 x 1800 x 30mm Display 2 x 9 A4 Black finish Key locking  ,02/05/2018,129233,678.00,Capital,White Hill Direct Ltd.,64098
Chorley Borough Council,http://statistics.data.gov.uk/id/local-authority/30UE,Capital,Capital,Business Development & Growth,Main Contractor,3007,Capital Expenditure,Capital,Supply and installation of Buttermere Toddler Play Area as per the tender submission.,25/05/2018,129872,"1,005.00",Capital,Wicksteed Leisure Ltd,18007
Chorley Borough Council,http://statistics.data.gov.uk/id/local-authority/30UE,Service Management & Support,1009,Customer & Digital,Vehicles and Plant Maintenance,30045,Direct Transport Costs,5016,Complete repairs to NJ10 OTW as per your invoice 10848.,23/05/2018,129789,395.00,Revenue,Wrekamendid Services Ltd,21188
Chorley Borough Council,http://statistics.data.gov.uk/id/local-authority/30UE,Service Management & Support,1009,Customer & Digital,Vehicles and Plant Maintenance,30045,Direct Transport Costs,5016,Complete service to PO15 VFZ as per your invoice 10900.,25/05/2018,129877,309.16,Revenue,Wrekamendid Services Ltd,21188
